Cogmind - Beta 16 @@@ ROGUE MODE // 2026.02.04 @ 02:02:54 Player: +Jones Result: Destroyed by Antisys Drone with Antisys Shotgun Performance ------------- Evolutions (9) 4500 Regions Visited (37) 7400 Robots Destroyed (685) 3425 Value Destroyed (35178) 35178 Prototype IDs (78) 1560 Alien Tech Used (0) 0 Bonus (22207) 22207 TOTAL SCORE: 74270 Bonus ------- Triggered High Security 500 High Alert Combat Kills 10008 Follower Combat Kills 3613 Entered Garrisons 1400 Aligned with FarCom 300 Met Data Miner 300 Acquired ECA 300 Met Warlord at Base 500 MAIN.C Attacked Warlord 500 Warlord Defense Kills 228 Built Enhanced Grunts 300 A7 Reached Mainframe 300 Met R17 at Cetus 500 Met Warlord at Research 2000 Invited to Help at Command 2000 Friendly Fire -542 Cogmind --------- Core Integrity 0/1600 Matter 34/300 Energy 100/100 System Corruption 29% Temperature Cool (0) Movement Core (50) Location -1/Access Parts ------- > --- POWER (2) -------- (None) > --- PROPULSION (6) --- (None) > --- UTILITY (12) ----- Improved System Guard > --- WEAPON (5) ------- (None) > --- INVENTORY (5) ---- Micro Antimatter Reactor Light Quantum Reactor Centrium Heavy Armor Plating Advanced Remote Datajack Peak State ------------ > --- POWER ------------ Quantum Reactor Quantum Reactor > --- PROPULSION ------- Improved Heavy Siege Treads Biometal Heavy Treads Advanced Heavy Siege Treads > --- UTILITY ---------- Advanced Cooling System Advanced Coolant Injector Huge Storage Unit Advanced Energy Well Experimental Core Analyzer Centrium Heavy Armor Plating Improved Force Field Advanced Hacking Suite Advanced Hacking Suite Improved Dynamic Insulation System Advanced Corruption Screen > --- WEAPON ----------- Railgun Railgun Enhanced Hardcell Cannon Enhanced Hardcell Cannon Enhanced Hardcell Cannon > --- INVENTORY -------- Light Quantum Reactor Heavy Siege Treads Heavy Siege Treads Advanced Heavy Siege Treads Matter Compressor Matter Compressor Centrium Heavy Armor Plating Centrium Heavy Armor Plating Thermal Barrier Advanced Remote Force Field Advanced Point Defense System Long-range Tractor Beam Drone Bay Enhanced Hardcell Cannon Enhanced Hardcell Cannon Graviton Cannon Fusion Bomb Launcher Ragnarok Missile Launcher Advanced Remote Datajack Vibroblade [Rating: 214] Favorites ----------- Power Reinforced Fission Core Engine Heavy Deuterium Engine Power Core Reinforced Fission Core Reactor Quantum Reactor Propulsion Improved Treads Treads Improved Treads Leg Carbon-fiber Leg Wheel Armored Huge Wheel Utility Huge Storage Unit Device Seismic Detector Storage Huge Storage Unit Processor Machine Analyzer Hackware Advanced Hacking Suite Protection Hardened Heavy Armor Plating Weapon Railgun Energy Gun Vortex Rifle Energy Cannon Heavy Plasma Cannon Ballistic Gun Railgun Ballistic Cannon Assault Cannon Launcher Mini Grenade Launcher Special Weapon Mining Laser Impact Weapon Powered Hammer Slashing Weapon Scythe Piercing Weapon Vortex Lance Build | -11 -10 -10 -9 -9 -9 -8 -8 -8 -7 -7 -7 -7 -7 -7 -7 -7 -6 -6 -6 -6 -5 -5 -5 -5 -5 -4 -4 -4 -4 -4 -4 -3 -3 -3 -3 -2 -1 ------- Run | Yrd Mat Min Mat Min Exi Min Mat Gar Fac Gar Fac Gar Fac Gar Fac Gar Fac Low Low Dat Pro Fac Upp Upp War Pro Fac Ext Cet Arc Hub Res Gar Res Gar Res Acc Slots Evolved 18 | . . . 2 . . . 2 . 2 . . . . . . . 2 . . . . 2 . . . . 2 . . . . 2 . . . 2 2 Power 1 | . . . . . . . . . . . . . . . . . . . . . . . . . . . 1 . . . . . . . . . . Propulsion 4 | . . . 2 . . . 2 . . . . . . . . . . . . . . . . . . . . . . . . . . . . . . Utility 10 | . . . . . . . . . 2 . . . . . . . 2 . . . . 2 . . . . 1 . . . . 1 . . . . 2 Weapon 3 | . . . . . . . . . . . . . . . . . . . . . . . . . . . . . . . . 1 . . . 2 . Parts Attached 382 | 7 6 1 20 4 . . 24 4 18 7 11 8 3 3 . 8 5 3 5 . . 28 9 14 6 2 20 28 10 4 5 5 19 1 20 34 40 Power 36 | 1 1 . 3 . . . 2 . 3 1 . 1 . . . . 1 . . . . . . 2 . 1 3 7 . . . . 1 . 2 1 6 Engine 10 | 1 1 . 3 . . . 2 . 2 . . . . . . . . . . . . . . 1 . . . . . . . . . . . . . Core 12 | . . . . . . . . . 1 1 . 1 . . . . 1 . . . . . . 1 . . 1 5 . . . . . . . . 1 Reactor 14 | . . . . . . . . . . . . . . . . . . . . . . . . . . 1 2 2 . . . . 1 . 2 1 5 Propulsion 101 | 2 . . 5 2 . . 17 1 7 1 3 3 2 2 . 2 1 . . . . 8 5 4 . . 5 11 2 . . 2 1 . 6 5 4 Treads 70 | 2 . . 2 2 . . 13 1 6 1 . 2 2 1 . 1 1 . . . . 3 3 4 . . 2 4 2 . . 2 1 . 6 5 4 Leg 2 | . . . . . . . . . . . . . . . . . . . . . . . 2 . . . . . . . . . . . . . . Wheel 29 | . . . 3 . . . 4 . 1 . 3 1 . 1 . 1 . . . . . 5 . . . . 3 7 . . . . . . . . . Hover . | . . . . . . . . . . . . . . . . . . . . . . . . . . . . . . . . . . . . . . Flight . | . . . . . . . . . . . . . . . . . . . . . . . . . . . . . . . . . . . . . . Utility 157 | 2 1 . 6 . . . 1 2 5 2 6 3 1 1 . 4 2 3 4 . . 10 3 3 3 1 12 7 3 3 3 2 12 1 8 24 19 Device 65 | 1 . . 2 . . . . 1 3 . 2 2 . . . 1 1 2 1 . . 4 1 2 2 1 2 2 1 . 1 1 6 . 6 13 7 Storage 12 | 1 1 . 1 . . . . . . . 1 . . . . . . . . . . . 1 . . . . . 1 . . . 1 . . 2 3 Processor 28 | . . . . . . . . . . . 1 . 1 . . . 1 1 . . . 4 1 1 1 . 6 2 . . . . 1 . . 4 4 Hackware 17 | . . . . . . . . 1 . . 1 . . . . . . . . . . 2 . . . . 4 . . 3 . 1 . 1 . 1 3 Protection 35 | . . . 3 . . . 1 . 2 2 1 1 . 1 . 3 . . 3 . . . . . . . . 3 1 . 2 . 4 . 2 4 2 Artifact . | . . . . . . . . . . . . . . . . . . . . . . . . . . . . . . . . . . . . . . Weapon 88 | 2 4 1 6 2 . . 4 1 3 3 2 1 . . . 2 1 . 1 . . 10 1 5 3 . . 3 5 1 2 1 5 . 4 4 11 Energy Gun 8 | . 1 . . . . . 1 . . . . . . . . . . . . . . . . 3 1 . . 1 . . . . 1 . . . . Energy Cannon 7 | . . . . . . . . . . . 1 . . . . . 1 . . . . 2 . . . . . . 1 . . 1 . . 1 . . Ballistic Gun 40 | 2 . . 1 . . . . . 2 3 1 1 . . . 1 . . 1 . . 8 . 1 1 . . 2 4 1 . . 4 . 2 3 2 Ballistic Cannon 16 | . 2 1 2 1 . . 1 . . . . . . . . . . . . . . . . 1 . . . . . . . . . . 1 . 7 Launcher 7 | . . . 2 . . . 1 1 . . . . . . . . . . . . . . 1 . . . . . . . . . . . . 1 1 Special Weapon 2 | . 1 . . . . . . . . . . . . . . . . . . . . . . . . . . . . . 1 . . . . . . Impact Weapon 4 | . . . 1 1 . . . . 1 . . . . . . . . . . . . . . . . . . . . . 1 . . . . . . Slashing Weapon 3 | . . . . . . . 1 . . . . . . . . 1 . . . . . . . . . . . . . . . . . . . . 1 Piercing Weapon 1 | . . . . . . . . . . . . . . . . . . . . . . . . . 1 . . . . . . . . . . . . Special Melee Weapon . | . . . . . . . . . . . . . . . . . . . . . . . . . . . . . . . . . . . . . . Unidentified Prototypes 30 | . 1 . 3 . . . 2 . 1 . 1 1 . . . . . . . . . . . . 5 . 1 1 5 . 1 1 . . . 5 2 Corrupted Parts 7 | . . . . . . . . . . . . . . . . . . . . . . . 2 3 . . . . 2 . . . . . . . . System Corruption 56 | . . . . . . . . . . . . . . . . . . . . . . . 19 24 . . . . 13 . . . . . . . . Parts Lost 101 | . . . 1 1 . . 2 1 3 . . . . . . 2 . . . . . 16 7 9 . . 13 3 1 . 2 . 4 . 9 . 27 Power 8 | . . . . . . . . . 1 . . . . . . . . . . . . . . 1 . . 1 1 . . . . . . . . 4 Propulsion 25 | . . . 1 1 . . 1 1 . . . . . . . . . . . . . 7 3 3 . . 3 . . . . . . . 1 . 4 Utility 43 | . . . . . . . . . 1 . . . . . . . . . . . . 6 4 4 . . 7 1 . . 2 . 4 . 4 . 10 Weapon 25 | . . . . . . . 1 . 1 . . . . . . 2 . . . . . 3 . 1 . . 2 1 1 . . . . . 4 . 9 Highest Loss Streak 12 | . . . 1 1 . . 1 1 2 . . . . . . 1 . . . . . 8 6 4 . . 8 3 1 . 2 . 2 . 4 . 12 To Critical Strikes 1 | . . . . . . . . . . . . . . . . . . . . . . . . . . . . . . . . . . . . . 1 Average Backups 20 | . 6 10 17 19 20 20 19 19 18 17 19 22 21 21 22 21 20 21 22 22 22 22 22 22 23 24 24 24 23 23 23 23 23 24 21 20 18 Power . | . . 1 . . . . . . . . . . 1 1 1 1 . . . . . . 1 1 1 1 . . . . . . . . . . 1 Propulsion 2 | . . . 1 2 3 3 2 2 3 4 2 3 3 3 5 4 1 1 1 2 2 1 1 1 1 2 3 5 4 4 4 4 5 5 4 4 2 Utility 8 | . 1 3 7 7 8 9 9 10 8 7 9 10 9 8 8 8 10 11 11 11 10 11 8 3 6 7 7 8 10 11 11 11 8 8 6 7 7 Weapon 7 | . 3 4 7 7 6 6 5 6 5 5 6 7 7 6 7 6 6 8 7 7 7 8 10 13 13 13 11 9 7 7 8 7 8 10 8 7 5 Tool/Special . | . . . . . . . . . . . . . . . . . . . . . . . . . . . . . . . . . . . . . . Unused Backups 83 | . 3 1 5 . 1 . 11 1 4 4 1 6 . 2 . 2 . 1 1 . 2 . . 2 2 . 2 4 4 3 . 1 1 . 6 4 9 Power 5 | . . . . . . . 1 . . . . . . . . . . . . . . . . 1 . . . 1 . . . . . . 1 . 1 Propulsion 17 | . . 1 . . . . 1 . 4 . . . . . . . . . . . . . . 1 . . . 1 . 1 . 1 . . 3 3 1 Utility 26 | . 1 . 2 . . . 3 . . 1 . 6 . 1 . 1 . 1 1 . . . . . . . . . 3 2 . . 1 . 2 . 1 Weapon 31 | . 2 . 3 . 1 . 5 1 . 2 1 . . 1 . 1 . . . . 2 . . . 1 . 2 2 1 . . . . . . 1 5 Tool/Special 4 | . . . . . . . 1 . . 1 . . . . . . . . . . . . . . 1 . . . . . . . . . . . 1 Average Slot Usage (%) 89 | . 99 100 98 98 100 100 99 99 89 91 83 71 76 72 75 71 88 92 92 86 91 85 87 91 94 94 84 95 88 87 88 83 86 80 81 81 76 Engine 3 | . 14 14 11 11 11 11 9 9 5 . . . . . . . . . . . . . . . . . . . . . . . . . . . . Core 3 | . . . . . . . . . 1 6 7 7 7 7 7 7 6 6 6 6 6 5 5 4 5 2 1 7 10 10 10 9 5 4 2 . . Reactor 1 | . . . . . . . . . . . . . . . . . . . . . . . . . . 2 8 2 . . . . 2 4 6 8 6 Treads 25 | . 27 28 24 26 44 44 48 47 37 30 15 8 11 10 7 13 23 33 33 33 33 21 19 24 30 29 21 18 27 21 21 19 17 14 15 12 11 Wheel 5 | . . . 18 17 . . 5 5 3 7 14 14 15 14 15 10 4 . . . . 5 6 . . . 1 9 . . . . . . . . . Device 10 | . 14 14 4 11 11 11 5 1 6 11 9 1 3 . 6 1 12 12 11 . 11 6 17 26 26 29 11 8 7 10 10 9 12 10 12 12 13 Storage 7 | . 14 14 11 11 11 11 9 9 7 7 7 7 7 7 7 7 6 6 6 6 6 5 5 11 8 5 5 5 5 5 5 4 5 9 5 7 6 Processor 5 | . . . . . . . . . . . . . 3 . . . 6 12 13 13 11 14 9 3 9 11 13 20 21 20 9 4 8 9 6 3 7 Hackware 3 | . . . . . . . . 5 2 . 6 7 7 7 7 7 6 6 6 6 6 4 . . . . 9 5 2 6 15 14 7 7 9 4 6 Protection 3 | . . . 6 . . . 3 2 6 10 4 6 3 6 7 6 6 . . 5 1 5 5 . . . . 4 5 2 5 9 8 4 6 8 5 Ballistic Gun 6 | . 6 . . . . . . . 1 10 5 8 15 15 15 12 8 6 8 13 10 8 7 3 6 5 4 6 7 10 . 5 13 13 11 16 9 Ballistic Cannon 5 | . 19 28 21 16 11 . 14 17 7 . . . . . . . . . . . . . . . . . . . . . . . . . 1 4 8 Peak Build Rating 214 | 7 11 13 22 19 19 19 34 34 51 58 63 84 79 86 79 86 87 87 86 85 89 96 96 97 113 109 122 111 135 137 136 146 169 156 163 195 214 Average Rating 79 | 5 9 11 16 18 18 18 29 33 43 52 58 72 71 74 73 78 82 84 84 83 85 86 88 86 105 107 102 97 108 135 131 134 154 151 154 181 188 On Entrance 79 | . 7 10 13 18 18 19 18 33 33 51 58 58 79 66 79 73 78 84 85 83 85 89 84 90 92 104 109 110 100 133 136 128 146 156 151 162 191 Avg Prop Armor Cover (%) 13 | . . . 12 9 . . 24 19 15 18 13 9 12 8 10 9 12 . . . . 10 18 3 . . 22 16 . . . . . . . . 19 Naked Turns 84 | . . . . . . . . . . . . . . . . . . . . . . . . . . . . . . . . . . . . . 84 Heaviest Build 227 | 13 36 36 61 59 57 57 69 69 81 91 118 131 131 131 131 131 130 130 131 126 132 145 140 133 124 128 158 163 159 160 149 150 181 183 188 217 227 Greatest Support 230 | 40 40 40 60 80 80 80 138 134 152 28 56 150 75 135 56 175 147 147 147 147 147 147 105 158 165 165 173 173 215 215 215 230 230 230 230 230 230 Greatest Overweight (x) 8 | 1 . . 3 1 . . 6 3 2 3 3 4 2 2 2 2 2 . . . . 8 8 2 . . 8 3 1 . . . . . 1 1 1 Average Overweight (x) . | . . . 1 . . . 1 . 1 2 1 1 1 1 2 1 1 . . . . . 3 . . . . 1 . . . . . . . . . Largest Inventory Capacity 25 | 8 15 15 20 20 20 20 20 20 20 20 25 25 25 25 25 25 25 25 25 25 25 25 25 25 25 25 25 25 25 25 25 25 25 25 25 25 25 Average Capacity 22 | 7 14 15 19 20 20 20 20 20 20 20 23 25 25 25 25 25 25 25 25 25 25 25 25 25 25 25 25 25 25 25 25 25 25 25 25 25 23 Most Carried 25 | 2 9 14 20 20 20 20 20 20 20 20 25 25 25 25 25 25 25 25 25 25 25 25 25 25 25 25 25 25 25 25 25 25 25 25 25 25 25 Average Carried 21 | . 6 10 17 19 19 20 19 19 19 19 21 24 24 24 24 23 23 24 24 24 24 23 23 24 24 25 24 24 24 24 24 24 24 25 23 24 22 Final Capacity 25 | 8 15 15 20 20 20 20 20 20 20 20 25 25 25 25 25 25 25 25 25 25 25 25 25 25 25 25 25 25 25 25 25 25 25 25 25 25 5 Final Carried 25 | 2 9 14 20 20 20 20 19 20 20 20 25 25 25 25 25 25 25 25 25 25 25 24 25 24 25 25 25 25 25 25 24 23 25 25 23 25 5 Class Distribution -------------------- 33% | Mutant 24% | Scavenger-Mutant 13% | Scavenger-Tank 11% | Skirmisher 6% | Scavenger-Skirmisher 4% | Commander-Mutant Dominant Class ---------------- Mutant | -10/Materials Mutant | -10/Mines Mutant | -9/Materials Scavenger-Mutant | -9/Mines Scavenger-Mutant | -9/Exiles Scavenger-Mutant | -8/Mines Mutant | -8/Materials Commander-Mutant | -8/Garrison Mutant | -7/Factory Mutant | -7/Garrison Assassin | -7/Factory Mutant | -7/Garrison Commander-Skirmisher | -7/Factory Mutant | -7/Garrison Commander-Skirmisher | -7/Factory Mutant | -7/Garrison Skirmisher | -6/Factory Skirmisher | -6/Lower Caves Skirmisher | -6/Lower Caves Mutant | -6/Data Miner Skirmisher | -5/Proximity Caves Skirmisher | -5/Factory Scavenger-Mutant | -5/Upper Caves Scavenger-Mutant | -5/Upper Caves Scavenger-Mutant | -5/Warlord Scavenger-Mutant | -4/Proximity Caves Scavenger-Mutant | -4/Factory Scavenger-Skirmisher | -4/Extension Scavenger-Skirmisher | -4/Cetus Scavenger-Skirmisher | -4/Archives Scavenger-Mutant | -4/Hub_04(d) Scavenger-Tank | -3/Research Scavenger-Tank | -3/Garrison Scavenger-Tank | -3/Research Scavenger-Tank | -3/Garrison Scavenger-Tank | -2/Research Scavenger-Tank | -1/Access Resources | -11 -10 -10 -9 -9 -9 -8 -8 -8 -7 -7 -7 -7 -7 -7 -7 -7 -6 -6 -6 -6 -5 -5 -5 -5 -5 -4 -4 -4 -4 -4 -4 -3 -3 -3 -3 -2 -1 ----------- Run | Yrd Mat Min Mat Min Exi Min Mat Gar Fac Gar Fac Gar Fac Gar Fac Gar Fac Low Low Dat Pro Fac Upp Upp War Pro Fac Ext Cet Arc Hub Res Gar Res Gar Res Acc Matter Collected 30193 | 167 870 241 1306 493 . 339 1763 754 734 370 540 1496 . 1292 204 1444 349 147 208 . 132 1528 874 1069 209 168 840 1660 474 370 125 . 1277 . 2438 1614 4698 Remotely 5248 | . . . . . . . . . . . . . . . . 309 . . . . . 155 . 168 . . . . . . . . 298 . 732 463 3123 Salvage Created 31502 | 128 833 102 1497 310 . 371 1775 535 733 462 575 1986 . 1452 260 2338 891 105 208 . 100 2412 536 812 149 131 1267 1780 92 406 . . 1505 . 1941 1250 4560 Parts 1534 | 8 37 13 93 30 . 20 106 42 43 29 26 92 . 62 14 92 47 1 13 . 2 136 27 17 14 2 40 70 6 30 . . 73 . 98 46 205 Haulers Intercepted 15 | . 2 . 6 . . . 5 . . . . . . . . . . . . . . . . . . . 2 . . . . . . . . . . Recyclers Shooed 22 | . . . 6 . . . 1 . 2 . . . . . . . 2 . . . . 5 . . . . 2 1 . . . . . . . . 3 Parts Field Recycled . | . . . . . . . . . . . . . . . . . . . . . . . . . . . . . . . . . . . . . . Retrieved Matter . | . . . . . . . . . . . . . . . . . . . . . . . . . . . . . . . . . . . . . . Parts Self-Destructed 35 | . . . . . . . . . . . . . . . . . . . 5 . 5 . 12 12 . 1 . . . . . . . . . . . Prevented 13 | . . . . . . . . . . . . . . . . . . . . . 2 . 4 7 . . . . . . . . . . . . . Parts Restored . | . . . . . . . . . . . . . . . . . . . . . . . . . . . . . . . . . . . . . . Kills | -11 -10 -10 -9 -9 -9 -8 -8 -8 -7 -7 -7 -7 -7 -7 -7 -7 -6 -6 -6 -6 -5 -5 -5 -5 -5 -4 -4 -4 -4 -4 -4 -3 -3 -3 -3 -2 -1 ------- Run | Yrd Mat Min Mat Min Exi Min Mat Gar Fac Gar Fac Gar Fac Gar Fac Gar Fac Low Low Dat Pro Fac Upp Upp War Pro Fac Ext Cet Arc Hub Res Gar Res Gar Res Acc Combat Hostiles Destroyed 508 | . 11 9 27 11 . 7 28 23 13 30 3 31 . 19 4 41 5 1 4 . 2 31 9 10 2 . 12 17 1 1 . . 21 . 33 17 85 Melee 22 | . . . . . . . 2 . 4 2 2 2 . . . 1 . . . . . . . . . . 6 . . . . . . . . . 3 Guns 231 | . 3 . . . . . . . 3 4 . 8 . 17 4 37 3 . 3 . 2 26 6 8 2 . 6 17 1 1 . . 17 . 20 12 31 Cannons 129 | . 8 9 23 2 . . 21 14 5 . . . . . . . . . 1 . . . . . . . . . . . . . 1 . 5 5 35 AOE 121 | . . . 4 9 . 7 4 9 1 24 1 21 . 2 . 3 2 . . . . 5 1 2 . . . . . . . . 3 . 8 . 15 Classes Destroyed 27 | 2 6 1 4 . . . 2 1 1 2 . . . . . . . . 1 . . 2 1 . . . . . . . . . 1 . . 2 1 Worker 40 | . 1 . 4 1 . 5 2 . 5 . 3 . . . . . 2 . . . . 3 . . . . . . . . . . . . . 1 13 Builder 36 | . . . 1 3 . . 6 . 2 . 3 . . . . . 5 . . . . 5 . . . . . 1 . . . . . . . . 10 Tunneler 14 | 3 . . . 5 . 3 2 . . . . . . . . . . . . . . . . . . . . . . . . . . . . . 1 Hauler 15 | . 2 . 6 . . . 5 . . . . . . . . . . . . . . . . . . . 2 . . . . . . . . . . Recycler 41 | 1 6 . 6 1 . 2 4 . 4 . 3 . . . . . 3 . . . . 2 . . . . 2 3 . . . . . . . 1 3 Mechanic 4 | . . . 1 . . . . . . . 1 . . . . . 1 . . . . 1 . . . . . . . . . . . . . . . Operator 14 | . 1 . 1 . . . . . 1 . 1 1 . . . . . . . . . . . . . . . . . 9 . . . . . . . Drone 16 | . . . . . . . . . . . . . . . . . . . . . . . . . . . . . . . . . . . . . 16 Watcher 21 | . 3 . 4 . . . 4 . . . 1 . . 1 . 1 . . . . . 2 . . . . 1 1 1 . . . . . . . 2 Swarmer 91 | . 4 6 6 . . 4 6 5 3 7 . 7 . 2 . 11 . . 3 . 1 . 3 . . . . . . . . . . . 15 4 4 Cutter 2 | . . . . . . . . . . 2 . . . . . . . . . . . . . . . . . . . . . . . . . . . Saboteur 3 | . . . . . . . . . . 3 . . . . . . . . . . . . . . . . . . . . . . . . . . . Grunt 172 | . 7 2 11 9 . 3 13 10 4 3 . 13 . 7 2 13 2 . . . . 14 . 4 1 . 3 8 . . . . 9 . 7 1 26 Brawler 8 | . . . 1 . . . . 1 . . . . . . . . . . . . . . 1 3 . . . . . . . . . . . . 2 Duelist 12 | . . . . . . . . . 1 . . 2 . . . 1 . . 1 . . . . 2 . . . . . . . . . . . 1 4 Protector 3 | . . . . . . . . . . . . . . . . . . . . . . 1 . . 1 . . . . . . . . . . . 1 Sentry 56 | . . . 9 . . . 6 4 3 3 . . . 3 2 6 . 1 . . 1 2 . 2 . . 1 4 . 1 . . 4 . 3 1 . Demolisher 2 | . . . . . . . . . . . . . . . . . . . . . . . . . . . . . . . . . . . . 2 . Specialist 9 | . . . . . . . 2 . . 1 . 3 . . . . . . . . . 2 . . . . . . . . . . . . . 1 . Hunter 42 | . . . . . . . 1 2 . 1 1 2 . 4 . 2 3 . . . . 2 3 . . . . 3 . . . . 4 . . 3 11 Programmer 69 | . . . . . . . . 1 2 . 2 5 . 4 . 8 . . . . . 9 2 . . . 6 . . . . . 3 . 5 2 20 Heavy 1 | . . . . . . . . . . . . . . . . . . . . . . 1 . . . . . . . . . . . . . . . Behemoth 4 | . . . . . . . . . . . . . . . . . . . . . . . . . . . . . . . . . 1 . 3 . . Cetus Guard 1 | . . . . . . . . . . . . . . . . . . . . . . . . . . . . . 1 . . . . . . . . CL-0N3 Special 1 | . . . . . . . . . . . . . . . . . . . . . . . . . . . 1 . . . . . . . . . . Hotshot 1 | . . . . . . . . . . . . . . . . . . . . . . . . . . . 1 . . . . . . . . . . Executioner 1 | . . . . . . . . . . . . . . . . . . . . . . . . . . . . . . . . . . . . 1 . Decomposer 3 | . . . . . . . . . . . . . . . . . . 1 . . . . 2 . . . . . . . . . . . . . . Samaritan 5 | . . . . . . . . . . . . . . . . . . . . . . . 4 1 . . . . . . . . . . . . . Assembled 13 | . . 1 . 2 . . . . . 10 . . . . . . . . . . . . . . . . . . . . . . . . . . . Wasp 1 | . . . . . . . . . . . . . . . . . . . . . . . . . . . . . . . . . . . . . 1 Savage 1 | . . . . . . . . . . . . . . . . . . . . . . . . . . . . 1 . . . . . . . . . Butcher 1 | . . . . . . . . . . . . . . . . . . . . . . . . . . . . . . . . . . . . 1 . Guerrilla 1 | . . . . . . . . . . . . . . . . . . . . . . . . . . . . 1 . . . . . . . . . Mutant 2 | . . . . . . . . . . . . . . . . . . . 1 . . . . 1 . . . . . . . . . . . . . Best Kill Streak 20 | 4 4 3 7 4 . 5 10 8 8 10 4 8 . 3 2 5 9 1 3 . 1 13 4 3 2 . 4 4 1 3 . . 6 . 10 4 20 Combat Bots Only 15 | . 2 3 4 3 . 4 5 8 3 10 1 8 . 3 2 5 2 1 3 . 1 6 4 3 2 . 4 4 1 1 . . 6 . 10 4 15 Max Kills in Single Turn 5 | 1 1 1 4 2 . 3 3 2 2 5 1 2 . 1 1 2 2 1 1 . 1 3 1 1 1 . 1 2 1 1 . . 3 . 2 2 4 Gunslinging 1 | . . . . . . . . . . . . . . . . 1 . . . . . . . . . . . . . . . . . . . . 1 Exploded 5 | . . . 2 2 . 3 2 2 1 5 1 2 . 1 . 2 2 . . . . 2 1 1 . . . . . . . . 3 . 2 . 2 Melee 1 | . . . . . . . 1 . 1 1 1 1 . . . 1 . . . . . . . . . . 1 . . . . . . . . . 1 Uniques/NPCs Destroyed . | . . . . . . . . . . . . . . . . . . . . . . . . . . . . . . . . . . . . . . Combat | -11 -10 -10 -9 -9 -9 -8 -8 -8 -7 -7 -7 -7 -7 -7 -7 -7 -6 -6 -6 -6 -5 -5 -5 -5 -5 -4 -4 -4 -4 -4 -4 -3 -3 -3 -3 -2 -1 -------- Run | Yrd Mat Min Mat Min Exi Min Mat Gar Fac Gar Fac Gar Fac Gar Fac Gar Fac Low Low Dat Pro Fac Upp Upp War Pro Fac Ext Cet Arc Hub Res Gar Res Gar Res Acc Hostile Shots Fired 3681 | . 32 37 58 26 . 5 157 95 229 99 21 105 . 53 59 234 40 27 17 . 5 384 128 55 . . 177 112 17 1 . . 172 . 374 93 869 Missed 939 | . 12 14 14 6 . 3 63 29 78 36 10 31 . 14 25 43 12 9 3 . 1 86 25 9 . . 33 28 6 1 . . 47 . 59 26 216 Intercepted 4 | . . . . . . . . . . . . . . . . . . . . . . . . . . . . . . . . . . . . 4 . Hits 2742 | . 20 23 44 20 . 2 94 66 151 63 11 74 . 39 34 191 28 18 14 . 4 298 103 46 . . 144 84 11 . . . 125 . 315 67 653 Melee 36 | . . . . . . . . . 3 1 . . . . . . . . . . . 1 4 15 . . . . . . . . . . . . 12 Projectile 2706 | . 20 23 44 20 . 2 94 66 148 62 11 74 . 39 34 191 28 18 14 . 4 297 99 31 . . 144 84 11 . . . 125 . 315 67 641 AOE 11 | . . . . . . . . . . 2 . 1 . . . . . . . . . 1 . . . . . . . . . . . . . 2 5 Critical Strikes 162 | . . . 1 . . . 3 3 2 . 1 7 . 1 2 2 2 . 1 . . 8 3 4 . . 2 3 3 . . . 12 . 23 2 77 Part Disruptions 12 | . . . . . . . . . . . . 1 . . . . . . . . . 1 . 1 . . . . . . . . . . 2 . 7 Actively Blocked 4 | . . . . . . . . . . . . . . . . . . . . . . . . . . . . . . . . . . . . . 4 Damage Taken 45013 | . 195 213 604 311 . 26 1423 925 1745 698 170 1147 . 594 303 2280 393 129 201 . 77 5193 2105 1413 . . 2846 1232 166 . 193 . 2173 . 4930 1208 12120 Core 4025 | . 10 23 92 81 . . 150 48 52 37 . 105 . 35 43 169 50 10 12 . . 311 193 214 . . 383 61 . . 55 . 63 . 189 25 1614 Absorbed by Shields 6685 | . . . . . . . . . 60 284 . 18 . . . . . . . . . 205 142 72 . . 44 691 170 . 88 . 273 . 1876 424 2338 Reduced by Siege Mode 1556 | . . . . . . . . . . . . 42 . 13 . 200 . 4 3 . . 16 . . . . 122 87 . . . . 132 . 510 . 427 Ignored by Resistances 1834 | . . . . . . . . . . . . . . . . . . . . . . . . . . . . . . . . . 370 . 921 . 543 Regen/Repaired (Parts) 4495 | . 169 . . . . . 618 . 261 . 231 . . . . . 432 . . . . 46 . . 775 . 1089 . . . . . . . . 858 16 Core Remaining (%) 69 | 100 . 86 . . . 56 . 64 . . . . . . . 37 . . . . 91 . . . . 28 . . . . 56 . . . 80 98 . Volleys Fired 1899 | 5 74 20 100 45 . 7 122 82 42 38 18 88 . 109 23 148 38 6 40 . 17 121 61 61 4 28 50 91 24 36 6 . 79 3 124 39 150 Largest 5 | 2 2 2 2 2 . 1 2 2 2 2 1 2 . 2 2 2 2 2 2 . 2 2 2 2 2 1 2 2 2 2 1 . 3 1 3 5 5 Hottest 290 | 40 100 66 100 74 . 33 74 74 74 66 65 66 . 66 66 66 90 123 90 . 90 90 90 188 66 90 188 90 66 70 90 . 160 90 160 198 290 Shots Fired 3787 | 10 131 40 196 57 . 7 204 123 71 46 18 119 . 200 46 264 58 10 48 . 21 209 100 94 8 28 93 146 45 68 8 . 214 3 321 174 607 Gun 2326 | 10 38 . 1 . . . . . 16 17 . 74 . 198 46 257 42 4 17 . 8 188 74 87 8 . 87 143 45 68 . . 205 . 276 136 281 Cannon 1226 | . 76 40 191 24 . . 196 113 50 . 17 . . . . . 12 6 31 . 13 13 13 . . 28 6 3 . . 8 . 7 3 35 38 303 Launcher 217 | . . . 3 33 . 7 8 10 5 29 1 45 . 2 . 7 4 . . . . 8 13 7 . . . . . . . . 2 . 10 . 23 Special 18 | . 17 . 1 . . . . . . . . . . . . . . . . . . . . . . . . . . . . . . . . . . Kinetic 3324 | 10 114 40 192 24 . . 196 113 66 17 . 74 . 198 46 257 42 4 17 . 8 188 74 76 8 . 48 127 45 68 . . 205 . 309 174 584 Thermal 230 | . 17 . 1 . . . . . . . 17 . . . . . 12 6 31 . 13 13 13 11 . 28 45 3 . . 8 . 7 3 2 . . Explosive 202 | . . . 3 33 . 7 3 10 5 29 1 45 . 2 . 7 4 . . . . 8 6 7 . . . . . . . . 2 . 7 . 23 Electromagnetic 15 | . . . . . . . 5 . . . . . . . . . . . . . . . 7 . . . . . . . . . . . 3 . . Entropic 16 | . . . . . . . . . . . . . . . . . . . . . . . . . . . . 16 . . . . . . . . . Robot Hit Streak 42 | 8 10 4 14 8 . 7 10 13 12 10 2 21 . 17 7 33 9 5 8 . 5 15 15 8 13 4 17 13 9 7 . . 34 . 42 18 26 Robot Miss Streak 8 | 1 3 4 7 3 . 1 5 3 3 2 . 2 . 5 2 8 3 2 1 . 3 4 4 4 1 . 1 4 5 3 1 . 2 . 2 6 4 Penetration Max 2 | . . . . . . . . . . . . 1 . 1 . 1 1 . 1 . . 1 1 1 2 . 1 2 2 1 . . 1 . 1 2 1 Secondary Targets 30 | . . . . . . . . . 1 . . . . . 1 2 . . 1 . . 3 2 . . . . 2 . . . . 5 . 3 . 10 Max Gunslinging Chain 2 | . . . . . . . . . 1 . . . . . 1 1 . . 1 . . 1 1 . . . . 1 . . . . 1 . 1 . 2 Shots Hit Robots 2327 | 8 63 21 116 29 . 12 110 50 73 29 20 123 . 124 22 204 26 6 13 . 5 112 65 49 7 3 90 77 23 41 . . 156 . 201 101 348 Core Hits 1331 | 4 29 10 52 26 . 20 56 35 35 54 7 87 . 67 8 88 24 2 9 . 4 94 30 28 2 2 35 49 10 21 . . 63 . 96 50 234 Critical Kills 72 | . . . . . . . . . . . . 1 . 3 . 5 2 1 . . . 23 2 . 2 . 4 17 1 3 . . 3 . 3 . 2 Critical Parts Destroyed 96 | . . . . 1 . 1 . . . 1 2 2 . 5 1 5 1 . . . . 18 4 1 6 . 4 18 4 4 . . 10 . 4 3 1 Critical Strikes 215 | . 3 . 6 1 . 1 . 1 . 2 4 6 . 8 1 11 3 1 . . . 41 7 1 8 . 10 38 6 9 . . 16 . 11 4 16 Meltdown 1 | . . . . . . . . . . . . . . . . . . 1 . . . . . . . . . . . . . . . . . . . Destroy 169 | . . . . . . . . . . 1 . 2 . 8 1 8 2 . . . . 41 6 1 8 . 8 37 6 9 . . 16 . 8 4 3 Blast 24 | . 3 . 6 . . . . 1 . . . . . . . . . . . . . . . . . . . . . . . . . . 3 . 11 Smash 8 | . . . . 1 . 1 . . . . 2 1 . . . 2 1 . . . . . . . . . . . . . . . . . . . . Sever 10 | . . . . . . . . . . 1 2 3 . . . 1 . . . . . . 1 . . . . . . . . . . . . . 2 Detonate 1 | . . . . . . . . . . . . . . . . . . . . . . . . . . . . 1 . . . . . . . . . Sunder 2 | . . . . . . . . . . . . . . . . . . . . . . . . . . . 2 . . . . . . . . . . Melee Attacks 420 | . . . 2 7 . 20 39 4 54 21 45 109 . 1 . 38 5 . . . . 2 2 2 . . 45 2 1 . 4 . 5 . . . 12 Impact 154 | . . . 2 7 . 20 3 . 7 2 21 40 . 1 . 16 1 . . . . 1 . . . . 22 2 . . 4 . 5 . . . . Slashing 242 | . . . . . . . 36 4 47 19 24 69 . . . 22 4 . . . . 1 2 2 . . . . . . . . . . . . 12 Piercing . | . . . . . . . . . . . . . . . . . . . . . . . . . . . . . . . . . . . . . . Entropic 24 | . . . . . . . . . . . . . . . . . . . . . . . . . . . 23 . 1 . . . . . . . . Sneak Attacks 64 | . . . . 6 . 10 11 . 15 . 11 3 . . . 1 1 . . . . . . 2 . . 1 1 . . . . . . . . 2 Combat Hostiles 3 | . . . . . . . 1 . 1 . . 1 . . . . . . . . . . . . . . . . . . . . . . . . . Follow-up Attacks 3 | . . . . . . . . . . . 1 2 . . . . . . . . . . . . . . . . . . . . . . . . . Damage Inflicted 85758 | 99 1137 482 2970 2068 . 1624 3885 2410 2802 2345 1151 7185 . 2691 673 5513 1289 184 360 . 116 3590 2108 1494 71 104 2815 1465 633 1105 24 . 4304 . 7247 2887 18927 Guns 37182 | 99 296 . . . . . . . 152 204 . 949 . 2502 673 4176 979 53 328 . 116 2501 1124 1094 71 . 1489 1185 633 1105 . . 3866 . 5588 2302 5697 Cannons 17762 | . 841 482 2617 308 . . 2290 1205 940 . 28 . . . . . . 131 32 . . . 310 . . 104 137 . . . 24 . 198 . 954 585 6576 Explosions 19320 | . . . 353 1329 . 641 629 1205 417 1893 81 3020 . 189 . 270 256 . . . . 1089 600 227 . . . 159 . . . . 240 . 705 . 6017 Melee 11370 | . . . . 431 . 983 966 . 1292 248 1042 3216 . . . 1067 54 . . . . . 74 173 . . 1189 121 . . . . . . . . 514 Ramming 124 | . . . . . . . . . 1 . . . . . . . . . . . . . . . . . . . . . . . . . . . 123 Kinetic 52158 | 99 1137 482 2617 308 . . 2290 1205 1092 204 . 949 . 2502 673 4176 979 53 328 . 116 2501 1124 921 71 . 518 591 633 1105 . . 3866 . 6458 2887 12273 Thermal 2202 | . . . . . . . 10 . . . 28 . . . . . . 131 32 . . . 310 173 . 104 1108 . . . 24 . 198 . 84 . . Explosive 18331 | . . . 353 1329 . 641 238 1205 417 1893 81 3020 . 189 . 270 256 . . . . 1089 406 227 . . . . . . . . 240 . 460 . 6017 Electromagnetic 979 | . . . . . . . 381 . . . . . . . . . . . . . . . 194 . . . . 159 . . . . . . 245 . . Impact 2839 | . . . . 431 . 983 . . 85 . 704 162 . . . 299 54 . . . . . . . . . . 121 . . . . . . . . . Slashing 7342 | . . . . . . . 966 . 1207 248 338 3054 . . . 768 . . . . . . 74 173 . . . . . . . . . . . . 514 Piercing . | . . . . . . . . . . . . . . . . . . . . . . . . . . . . . . . . . . . . . . Entropic 1783 | . . . . . . . . . . . . . . . . . . . . . . . . . . . 1189 594 . . . . . . . . . Highest Corruption 68 | . . . . . . . 1 2 5 . 1 3 . . . 2 . . . . . 15 36 68 68 . 31 31 44 44 50 . . . . . 41 Average Corruption 17 | . . . . . . . 1 1 2 . 1 2 . . . 1 . . . . . 9 17 48 68 . 19 31 35 44 46 . . . . . 24 Corruption Purged 9 | . . . . . . . . . 5 . 1 3 . . . . . . . . . . . . . . . . . . . . . . . . . Corruption Blocked 29 | . . . . . . . . . . . . . . . . . . . . . . . . . . . . . . . . . 3 . 10 . 16 Effects 604 | . . . . . . . 19 15 1 . 1 23 . . . 23 . . . . . 48 63 128 3 . 44 146 29 31 16 . . . . . 14 Message Errors 136 | . . . . . . . 5 4 1 . . 6 . . . 4 . . . . . 11 10 32 1 . 10 40 1 6 2 . . . . . 3 Matter Fused 144 | . . . . . . . 5 2 . . 1 5 . . . 7 . . . . . 14 19 29 . . 6 37 8 5 5 . . . . . 1 Heat Flow Errors 65 | . . . . . . . 5 1 . . . 1 . . . 1 . . . . . 4 9 19 . . 8 8 6 3 . . . . . . . Energy Discharges 65 | . . . . . . . 2 4 . . . 4 . . . 5 . . . . . 2 4 11 . . 5 19 2 5 2 . . . . . . Parts Rejected 5 | . . . . . . . . . . . . . . . . . . . . . . . 1 . . . . 2 1 . . . . . . . 1 Parts Fused 7 | . . . . . . . 1 . . . . 1 . . . . . . . . . 1 . 1 . . . 2 . . . . . . . . 1 Data Loss (minor) 72 | . . . . . . . 1 1 . . . 1 . . . 2 . . . . . 5 9 8 . . 7 18 7 6 5 . . . . . 2 Data Loss (major) 24 | . . . . . . . . . . . . 2 . . . 1 . . . . . . 1 5 1 . 3 5 3 . . . . . . . 3 Misfires 26 | . . . . . . . . 2 . . . 2 . . . 1 . . . . . 1 6 8 . . 1 2 . 1 2 . . . . . . Alerts 11 | . . . . . . . . 1 . . . . . . . . . . . . . 1 1 3 1 . 1 3 . . . . . . . . . Misdirections 5 | . . . . . . . . . . . . . . . . . . . . . . . . . . . 1 1 . . . . . . . . 3 Weapon Failures 44 | . . . . . . . . . . . . 1 . . . 2 . . . . . 9 3 12 . . 2 9 1 5 . . . . . . . Overload Shots . | . . . . . . . . . . . . . . . . . . . . . . . . . . . . . . . . . . . . . . Overflow Damage 3644 | . . 10 54 258 . 341 193 59 229 76 499 120 . . . 210 57 . . . . 25 54 2 . . 274 110 . . . . . . . . 1073 Projectiles 562 | . . 10 37 . . . 32 31 37 . . . . . . . . . . . . . 44 . . . 3 . . . . . . . . . 368 Explosions 961 | . . . 17 29 . . 11 28 . 76 . 59 . . . 73 3 . . . . 25 10 . . . . . . . . . . . . . 630 Melee 2121 | . . . . 229 . 341 150 . 192 . 499 61 . . . 137 54 . . . . . . 2 . . 271 110 . . . . . . . . 75 Knockbacks 118 | . 3 3 14 2 . 1 26 14 2 . 3 . . . . . . . . . . . . . . . . . . . . . . . 3 3 44 Impact 6 | . . . . 2 . 1 . . . . 3 . . . . . . . . . . . . . . . . . . . . . . . . . . Kinetic 103 | . 3 3 14 . . . 23 12 2 . . . . . . . . . . . . . . . . . . . . . . . . . 3 3 40 Secondary 9 | . . . . . . . 3 2 . . . . . . . . . . . . . . . . . . . . . . . . . . . . 4 Self-Inflicted Damage 1071 | . . . . 38 . . 35 . 40 331 . 34 . . . . . . . . . . 165 52 . . . 19 . . . . . . . . 357 Shots 33 | . . . . 2 . . 1 . 1 12 . 1 . . . . . . . . . . 8 2 . . . 1 . . . . . . . . 5 Rammed 24 | . . . . . . . . . . . . . . . . . . . . . . . . . . . . . . . . . . . . . 24 Targets Rammed 25 | . . . . . . . . . 1 . . . . . . . . . . . . . . . . . . . . . . . . . . . 24 Kicked . | . . . . . . . . . . . . . . . . . . . . . . . . . . . . . . . . . . . . . . Crushed 1 | . . . . . . . . . 1 . . . . . . . . . . . . . . . . . . . . . . . . . . . . Highest Temperature 607 | . 161 78 63 29 . . 275 249 176 84 156 210 . 324 199 336 240 306 160 . 120 324 243 192 . . 310 250 284 185 4 239 92 . 607 270 318 Average Temperature 81 | . 32 22 14 15 . . 66 94 73 28 63 52 . 88 80 109 89 124 52 . 50 82 98 72 . . 93 58 122 80 3 126 33 . 111 70 103 Received Heat Transfer 9216 | . 54 48 201 132 . 9 396 495 396 108 . 255 . 126 132 600 99 30 20 . 9 1009 193 180 . . 41 260 8 . . . 559 . 1978 40 1838 Effects 33 | . . . . . . . . . . . . . . 2 . 11 1 . . . . 1 3 . . . . . 3 . . . . . 12 . . Shutdowns 4 | . . . . . . . . . . . . . . . . 1 . . . . . . . . . . . . . . . . . . 3 . . Energy Bleed 7 | . . . . . . . . . . . . . . 2 . 2 1 . . . . 1 . . . . . . 1 . . . . . . . . Interference 18 | . . . . . . . . . . . . . . . . 8 . . . . . . 3 . . . . . 2 . . . . . 5 . . Matter Decay 2 | . . . . . . . . . . . . . . . . . . . . . . . . . . . . . . . . . . . 2 . . Damage (major) 2 | . . . . . . . . . . . . . . . . . . . . . . . . . . . . . . . . . . . 2 . . Siege Activations 69 | . . . . . . . . . . . . 9 . 5 . 14 1 1 3 . . 4 . . . . 3 4 . 4 . . 8 . 8 2 3 Total Turns 2133 | . . . . . . . . . . . . 134 . 66 . 396 3 11 115 . . 73 . . . . 76 438 . 59 . . 241 . 358 22 141 Longest Duration 323 | . . . . . . . . . . . . 62 . 21 . 115 3 11 89 . . 24 . . . . 53 323 . 22 . . 66 . 67 20 100 Martial Activations . | . . . . . . . . . . . . . . . . . . . . . . . . . . . . . . . . . . . . . . Shielding Activations . | . . . . . . . . . . . . . . . . . . . . . . . . . . . . . . . . . . . . . . Robots Disrupted . | . . . . . . . . . . . . . . . . . . . . . . . . . . . . . . . . . . . . . . Combat Hostiles . | . . . . . . . . . . . . . . . . . . . . . . . . . . . . . . . . . . . . . . Robots Corrupted 14 | . . . . 2 . 3 1 . . . 4 . . . . . 1 . . . . . 2 . . . . . . . . . . . . . 1 Combat Hostiles 4 | . . . . . . . 1 . . . . . . . . . . . . . . . 2 . . . . . . . . . . . . . 1 Parts Fried 34 | . . . . 4 . 2 6 . . . 8 3 . . . . 2 . . . . . 3 1 . . . 2 . . . . . . 3 . . Impact Corruptions 43 | . . . . 6 . 11 . . . . 14 1 . . . 5 2 . . . . . . . . . . 2 . . . . . . . . 2 Robots Melted 1 | . . . . . . . . . . . . . . . . . . 1 . . . . . . . . . . . . . . . . . . . Combat Hostiles 1 | . . . . . . . . . . . . . . . . . . 1 . . . . . . . . . . . . . . . . . . . Parts Melted 8 | . . . . . . . . . . . . . . . . . . . . . . 1 . . . . 2 2 . . . . . . . 2 1 Heat Transferred 2390 | . . . . . . . 50 . . . 37 . . . . . . 200 50 . . . 333 222 . 111 1387 . . . . . . . . . . Parts Sabotaged . | . . . . . . . . . . . . . . . . . . . . . . . . . . . . . . . . . . . . . . Parts Stolen . | . . . . . . . . . . . . . . . . . . . . . . . . . . . . . . . . . . . . . . Parts Stripped . | . . . . . . . . . . . . . . . . . . . . . . . . . . . . . . . . . . . . . . Power Chain Reactions 1 | . . . . . . . 1 . . . . . . . . . . . . . . . . . . . . . . . . . . . . . . Alert | -11 -10 -10 -9 -9 -9 -8 -8 -8 -7 -7 -7 -7 -7 -7 -7 -7 -6 -6 -6 -6 -5 -5 -5 -5 -5 -4 -4 -4 -4 -4 -4 -3 -3 -3 -3 -2 -1 ------- Run | Yrd Mat Min Mat Min Exi Min Mat Gar Fac Gar Fac Gar Fac Gar Fac Gar Fac Low Low Dat Pro Fac Upp Upp War Pro Fac Ext Cet Arc Hub Res Gar Res Gar Res Acc Maximum Alert Level 5 | . . . 1 1 . . 1 4 3 4 3 5 3 5 4 5 4 . . . . 1 . . . . . 2 1 . . . 3 2 5 4 5 Low Security (%) 43 | 100 100 100 71 91 . 100 80 7 . . 50 7 . . . . . . . . . 41 . . . . 100 71 69 100 100 100 9 . . . . Level 1 11 | . . . 28 8 . . 19 3 . 4 43 16 . . . . . . . . . 58 . . . . . 22 30 . . . 14 . . . . Level 2 9 | . . . . . . . . 28 94 6 1 6 . 4 . . . . . . . . . . . . . 5 . . . . 22 100 27 . 3 Level 3 18 | . . . . . . . . 42 5 45 3 29 100 15 49 21 . . . . . . . . . . . . . . . . 53 . 37 85 60 Level 4 10 | . . . . . . . . 18 . 43 . 30 . 36 50 23 100 . . . . . . . . . . . . . . . . . 30 14 7 Level 5 6 | . . . . . . . . . . . . 10 . 44 . 55 . . . . . . . . . . . . . . . . . . 5 . 16 High Security . | . . . . . . . . . . . . . . . . . . . . . . . . . . . . . . . . . . . . . 11 Max Security . | . . . . . . . . . . . . . . . . . . . . . . . . . . . . . . . . . . . . . . Peak Influence 2408 | 10 174 97 297 217 . 152 254 1423 746 1389 728 1911 1003 2057 1206 2408 1309 . . . . 386 . . . . 98 415 245 190 53 2 1080 618 1792 1168 2402 Initial 1264 | . 6 37 . 30 . . . 115 746 373 728 86 1003 653 1079 837 1264 . . . . . . . . . . 19 196 63 48 2 9 607 415 1008 641 Average 552 | 3 53 21 118 50 . 35 117 772 561 1022 240 996 969 1501 1130 1604 1241 . . . . 195 . . . . 23 128 179 140 14 . 648 583 1004 1017 1240 Influence Increases 22289 | 20 481 220 1036 347 . 275 1047 1338 501 1016 241 1885 . 1464 277 1631 266 20 130 . 40 966 242 240 40 5 363 1163 318 289 84 12 1151 37 1527 960 2657 Destroy 0b10 Robot/C 10960 | . 220 160 600 180 . 140 560 560 260 400 60 740 . 640 160 820 120 20 60 . 40 600 180 200 20 . 200 680 160 80 20 . 500 . 740 480 1360 Destroy 0b10 Robot/NC 1090 | 20 65 . 115 50 . 50 115 . 60 . 60 65 . 40 . 30 55 . . . . 70 . . 5 5 25 35 10 45 . . . . 10 10 150 Destroy Leader 1598 | . 50 30 180 20 . 20 148 20 70 10 32 60 . 60 30 100 20 . 10 . . 114 30 10 . . 56 74 . . 10 . 60 . 50 90 244 Allied During Kill 1186 | . . 11 22 . . . . 25 11 . . 68 . 166 32 23 7 . . . . . 2 . . . . 314 99 87 15 . 55 . 82 167 . Successful Hack 386 | . 35 . 49 . . . 52 12 10 14 58 8 . 18 18 5 4 . . . . 39 . . . . 7 14 . . . 12 . 31 . . . Select Force Hacks 30 | . 30 . . . . . . . . . . . . . . . . . . . . . . . . . . . . . . . . . . . . Disable Machine 630 | . 15 . 15 . . 30 15 60 30 15 . 135 . 45 30 60 15 . . . . . . . . . 15 . 15 45 . . 30 . 30 . 30 Anti-Garrison Action 3050 | . . . . . . . . 450 . 350 . 500 . 400 . 400 . . . . . . . . . . . . . . . . 350 . 450 150 . Destroy Structure 2594 | . 21 4 40 97 . 35 97 196 45 212 31 279 . 80 7 103 30 . . . . 98 . . . . 30 46 4 32 24 . 141 6 90 63 783 Partial Spotted 60 | . . . . . . . 15 . . . . . . . . 15 15 . . . . . . . . . . . . . 15 . . . . . . Lose Combat Pursuer 705 | . 45 15 15 . . . 45 15 15 15 . 30 . 15 . 75 . . 60 . . 45 30 30 15 . 30 . 30 . . . 15 . 75 . 90 Influence Decreases 19887 | 10 395 316 959 244 180 275 870 92 1391 160 1507 97 978 340 1138 419 1528 939 357 . 40 584 609 232 63 5 323 853 510 309 217 5 83 563 289 1682 1325 Entered New Map 8385 | . 4 59 . 47 180 . . 62 677 160 661 37 908 280 978 359 1144 425 44 . . . 142 4 23 . . 21 154 95 90 3 3 473 139 784 429 Time Decay 8596 | 10 391 257 619 187 . 275 656 . 634 . 546 . 70 . 100 . 334 514 313 . 40 424 381 178 40 5 231 462 246 214 103 2 . 90 . 658 616 Lost Part 903 | . . . 10 10 . . 11 10 30 . . . . . . 20 . . . . . 160 66 50 . . 92 30 10 . 4 . 40 . 90 . 270 Lost Ally 1200 | . . . 30 . . . . 20 50 . . 60 . 60 60 40 50 . . . . . 20 . . . . 340 100 . 20 . 40 . 60 240 10 Purge Threat 803 | . . . 300 . . . 203 . . . 300 . . . . . . . . . . . . . . . . . . . . . . . . . . Squads Dispatched 78 | . 2 . 1 . . . 4 . 7 . 5 . . . 2 . 4 . . . . 8 . . . . 6 3 . . 1 1 . 1 . 1 32 Investigation 4 | . 1 . 1 . . . . . . . 1 . . . . . . . . . . . . . . . . . . . . 1 . . . . . Extermination 18 | . . . . . . . . . 3 . 3 . . . . . . . . . . 4 . . . . 3 . . . . . . . . . 5 Reinforcement 29 | . 1 . . . . . 4 . 3 . 1 . . . 1 . 3 . . . . 4 . . . . . 3 . . 1 . . 1 . 1 6 Assault 16 | . . . . . . . . . . . . . . . . . 1 . . . . . . . . . . . . . . . . . . . 15 Garrison 11 | . . . . . . . . . 1 . . . . . 1 . . . . . . . . . . . 3 . . . . . . . . . 6 Intercept . | . . . . . . . . . . . . . . . . . . . . . . . . . . . . . . . . . . . . . . Searches Triggered . | . . . . . . . . . . . . . . . . . . . . . . . . . . . . . . . . . . . . . . Unchained Authorized 2 | . . . . . . . . . . . . . . . . . . . . . . . . . . . 1 . . . . . . . . . 1 Data Miner Redirects 4 | . . . . . . . . . . . . . . . . . . . . . . 1 . . . . . . . . . . . . . . 3 Construction Impeded 10 | . . . . . . . 2 . 1 . . . . . . . 1 . . . . 2 . . . . . 2 . . . . . . . . 2 Haulers Reinforced 6 | . . . . . . . . . 1 . . . . . 1 . 1 . . . . . . . . . . . . . . . . . . 1 2 Active Scanning Responses . | . . . . . . . . . . . . . . . . . . . . . . . . . . . . . . . . . . . . . . Cargo Convoy Interrupts 1 | . . . . . . . . . . . . . . . . . . . . . . 1 . . . . . . . . . . . . . . . Stealth | -11 -10 -10 -9 -9 -9 -8 -8 -8 -7 -7 -7 -7 -7 -7 -7 -7 -6 -6 -6 -6 -5 -5 -5 -5 -5 -4 -4 -4 -4 -4 -4 -3 -3 -3 -3 -2 -1 --------- Run | Yrd Mat Min Mat Min Exi Min Mat Gar Fac Gar Fac Gar Fac Gar Fac Gar Fac Low Low Dat Pro Fac Upp Upp War Pro Fac Ext Cet Arc Hub Res Gar Res Gar Res Acc Distress Signals 30 | . 3 . 5 . . . 4 . 2 . . . . 1 . . . . . . . 3 . . . . 1 1 2 . . . . . 1 6 1 Communications Jammed 50 | . . . . . . . . . . . . . . . . . . . . . . 33 . . . . . 17 . . . . . . . . . Distress Signals 50 | . . . . . . . . . . . . . . . . . . . . . . 33 . . . . . 17 . . . . . . . . . Times Spotted 742 | . 20 10 41 10 . 5 36 27 16 25 8 30 . 36 10 43 7 1 6 . 2 50 12 12 7 . 17 36 12 17 1 . 21 . 39 42 143 Peak Tracking Total 12 | . 4 3 6 3 . 3 5 6 4 10 2 9 . 3 3 6 2 1 4 . 1 12 5 3 5 . 5 3 5 2 1 . 5 . 7 7 8 Tactical Retreats 36 | . 2 1 1 . . . 2 1 1 1 . 1 . 1 . 4 . . 1 . . 2 2 2 1 . 1 . 1 . . . 1 . 5 . 5 Traps | -11 -10 -10 -9 -9 -9 -8 -8 -8 -7 -7 -7 -7 -7 -7 -7 -7 -6 -6 -6 -6 -5 -5 -5 -5 -5 -4 -4 -4 -4 -4 -4 -3 -3 -3 -3 -2 -1 ------- Run | Yrd Mat Min Mat Min Exi Min Mat Gar Fac Gar Fac Gar Fac Gar Fac Gar Fac Low Low Dat Pro Fac Upp Upp War Pro Fac Ext Cet Arc Hub Res Gar Res Gar Res Acc Traps Triggered 24 | . . . . . . . 1 . 4 2 2 2 . . . . . . . . . . . 1 . . 2 8 . . . . 1 . . . 1 Indirectly . | . . . . . . . . . . . . . . . . . . . . . . . . . . . . . . . . . . . . . . Trap Hack Attempts . | . . . . . . . . . . . . . . . . . . . . . . . . . . . . . . . . . . . . . . Triggered . | . . . . . . . . . . . . . . . . . . . . . . . . . . . . . . . . . . . . . . Disarmed 6 | . . . 6 . . . . . . . . . . . . . . . . . . . . . . . . . . . . . . . . . . Reprogrammed . | . . . . . . . . . . . . . . . . . . . . . . . . . . . . . . . . . . . . . . Reused . | . . . . . . . . . . . . . . . . . . . . . . . . . . . . . . . . . . . . . . Traps Extracted . | . . . . . . . . . . . . . . . . . . . . . . . . . . . . . . . . . . . . . . Installed . | . . . . . . . . . . . . . . . . . . . . . . . . . . . . . . . . . . . . . . Triggered . | . . . . . . . . . . . . . . . . . . . . . . . . . . . . . . . . . . . . . . Machines | -11 -10 -10 -9 -9 -9 -8 -8 -8 -7 -7 -7 -7 -7 -7 -7 -7 -6 -6 -6 -6 -5 -5 -5 -5 -5 -4 -4 -4 -4 -4 -4 -3 -3 -3 -3 -2 -1 ---------- Run | Yrd Mat Min Mat Min Exi Min Mat Gar Fac Gar Fac Gar Fac Gar Fac Gar Fac Low Low Dat Pro Fac Upp Upp War Pro Fac Ext Cet Arc Hub Res Gar Res Gar Res Acc Machines Disabled 88 | . 1 . 1 . . 2 1 11 2 7 . 17 . 11 2 8 1 . 1 . . . . . . . 1 1 1 3 . . 7 . 7 1 2 Max in Single Turn 2 | . 1 . 1 . . 1 1 2 1 2 . 1 . 2 1 1 1 . 1 . . . . . . . 1 1 1 1 . . 2 . 1 . 1 Garrison Access 5 | . . . . . . . . . 1 . . . . . . . . . . . . . . . . . . . . . . . . . . 3 1 Garrison Relay 29 | . . . . . . . . 5 . 4 . 5 . 5 . 4 . . . . . . . . . . . . . . . . 3 . 3 . . Phase Generator 5 | . . . . . . . . 1 . 1 . 1 . 1 . . . . . . . . . . . . . . . . . . 1 . . . . Machines Repaired . | . . . . . . . . . . . . . . . . . . . . . . . . . . . . . . . . . . . . . . Machines Dismantled . | . . . . . . . . . . . . . . . . . . . . . . . . . . . . . . . . . . . . . . Machines Sabotaged . | . . . . . . . . . . . . . . . . . . . . . . . . . . . . . . . . . . . . . . Overloaded Fab Kills . | . . . . . . . . . . . . . . . . . . . . . . . . . . . . . . . . . . . . . . Hacking | -11 -10 -10 -9 -9 -9 -8 -8 -8 -7 -7 -7 -7 -7 -7 -7 -7 -6 -6 -6 -6 -5 -5 -5 -5 -5 -4 -4 -4 -4 -4 -4 -3 -3 -3 -3 -2 -1 --------- Run | Yrd Mat Min Mat Min Exi Min Mat Gar Fac Gar Fac Gar Fac Gar Fac Gar Fac Low Low Dat Pro Fac Upp Upp War Pro Fac Ext Cet Arc Hub Res Gar Res Gar Res Acc Machines Accessed 120 | . 9 . 16 . 1 . 16 3 8 1 11 1 1 3 2 2 2 1 1 3 . 7 . 1 3 . 7 8 1 . 2 2 1 3 . 2 2 Terminals 69 | . 7 . 12 . . . 12 3 4 1 5 1 . 3 1 2 1 . . . . 2 . . . . 2 7 1 . 2 . 1 1 . . 1 Fabricators 1 | . . . . . . . . . . . 1 . . . . . . . . . . . . . . . . . . . . . . . . . . Repair Stations 14 | . 1 . 1 . . . 2 . 2 . 1 . . . . . 1 . . . . 2 . . . . 3 1 . . . . . . . . . Recycling Units 9 | . 1 . 1 . . . . . . . 3 . . . . . . . . . . 2 . . . . 2 . . . . . . . . . . Scanalyzers 5 | . . . 2 . . . 1 . . . . . . . . . . . . . . . . . . . . . . . . 1 . 1 . . . Garrison Access 12 | . . . . . . . 1 . 2 . 1 . 1 . 1 . . . . . . 1 . . . . . . . . . 1 . 1 . 2 1 Total Hacks 349 | . 43 . 48 . 1 . 62 5 14 1 34 1 1 4 3 4 12 1 1 21 . 17 . 1 8 . 21 16 2 . 5 6 4 5 . 4 4 Successful 234 | . 32 . 26 . 1 . 44 2 11 1 24 1 1 3 3 2 7 1 1 21 . 12 . 1 8 . 16 5 . . 1 4 1 3 . 1 1 Failed 113 | . 10 . 21 . . . 18 3 3 . 10 . . 1 . 2 5 . . . . 5 . . . . 5 11 2 . 4 2 3 2 . 3 3 Catastrophic 20 | . 2 . 1 . . . 4 1 2 . 1 . . . . . . . . . . 1 . . . . 2 4 . . 2 . . . . . . Database Lockouts 2 | . 1 . 1 . . . . . . . . . . . . . . . . . . . . . . . . . . . . . . . . . . Manual 120 | . 24 . 27 . 1 . 24 . 4 . 8 . . . 1 . 8 . . . . 5 . . 1 . 2 9 1 . 3 . . . . . 2 Terminals 204 | . 35 . 42 . . . 36 5 6 1 18 1 . 4 2 4 10 . . . . 6 . . . . 4 15 2 . 5 . 4 2 . . 2 Fabricators 1 | . . . . . . . . . . . 1 . . . . . . . . . . . . . . . . . . . . . . . . . . Repair Stations 70 | . 7 . 2 . . . 22 . 6 . 8 . . . . . 2 . . . . 7 . . . . 15 1 . . . . . . . . . Recycling Units 12 | . 1 . 1 . . . . . . . 6 . . . . . . . . . . 2 . . . . 2 . . . . . . . . . . Scanalyzers 10 | . . . 3 . . . 3 . . . . . . . . . . . . . . . . . . . . . . . . 3 . 1 . . . Garrison Access 19 | . . . . . . . 1 . 2 . 1 . 1 . 1 . . . . . . 2 . . . . . . . . . 3 . 2 . 4 2 Terminal Hacks 94 | . 13 . 7 . 1 . 10 2 2 1 8 1 . 3 1 2 4 1 1 21 . 2 . 1 8 . 1 2 . . . . 1 1 . . . Record 6 | . 1 . 1 . . . . . . . . . . . . . . . . 2 . . . . 2 . . . . . . . . . . . . Part Schematic 13 | . . . . . . . . . 1 . . . . . . . . . . 12 . . . . . . . . . . . . . . . . . Robot Schematic 4 | . . . . . . . . . . . . . . . . . . . . 4 . . . . . . . . . . . . . . . . . Robot Analysis 5 | . 3 . . . . . 2 . . . . . . . . . . . . . . . . . . . . . . . . . . . . . . Prototype ID Bank 14 | . 3 . 1 . . . . . . . 1 . . . . . 1 . . 3 . . . . 5 . . . . . . . . . . . . Open Door 7 | . . . . . . . . . . . . . . 1 . 1 . 1 1 . . . . 1 1 . 1 . . . . . . . . . . Branch Access Points 2 | . . . . . . . . . . . . . . . . . 1 . . . . 1 . . . . . . . . . . . . . . . Emergency Access Points 7 | . 1 . . . . . . 1 . 1 . 1 . 1 . 1 . . . . . . . . . . . . . . . . 1 . . . . Machine Index 1 | . . . . . . . . . . . 1 . . . . . . . . . . . . . . . . . . . . . . . . . . Terminal Index 3 | . 1 . . . . . . . . . 1 . . . . . 1 . . . . . . . . . . . . . . . . . . . . Alert Level 4 | . . . . . . . 2 . . . 1 . . . . . . . . . . . . . . . . 1 . . . . . . . . . Unreport Threat 6 | . . . 2 . . . 2 . . . 2 . . . . . . . . . . . . . . . . . . . . . . . . . . Locate Traps 13 | . 3 . 1 . . . 2 . 1 . 2 . . . 1 . 1 . . . . . . . . . . 1 . . . . . 1 . . . Disarm Traps 1 | . . . 1 . . . . . . . . . . . . . . . . . . . . . . . . . . . . . . . . . . Patrol Status 1 | . . . . . . . . . . . . . . . . . . . . . . 1 . . . . . . . . . . . . . . . Hauler Manifests 2 | . 1 . . . . . 1 . . . . . . . . . . . . . . . . . . . . . . . . . . . . . . Zone Layout 2 | . . . 1 . . . 1 . . . . . . . . . . . . . . . . . . . . . . . . . . . . . . Garrison Registry 1 | . . . . . . . . 1 . . . . . . . . . . . . . . . . . . . . . . . . . . . . . Security Stations 1 | . . . . . . . . . . . . . . 1 . . . . . . . . . . . . . . . . . . . . . . . Proto ID Catalog 1 | . . . . . 1 . . . . . . . . . . . . . . . . . . . . . . . . . . . . . . . . Fabricator Hacks 1 | . . . . . . . . . . . 1 . . . . . . . . . . . . . . . . . . . . . . . . . . Network Status 1 | . . . . . . . . . . . 1 . . . . . . . . . . . . . . . . . . . . . . . . . . Repair Station Hacks 62 | . 6 . 1 . . . 22 . 5 . 8 . . . . . 2 . . . . 5 . . . . 13 . . . . . . . . . . Scan Component 33 | . 3 . 1 . . . 11 . 3 . 4 . . . . . 1 . . . . 3 . . . . 7 . . . . . . . . . . Repair 29 | . 3 . . . . . 11 . 2 . 4 . . . . . 1 . . . . 2 . . . . 6 . . . . . . . . . . Recycling Unit Hacks 8 | . . . 1 . . . . . . . 3 . . . . . . . . . . 2 . . . . 2 . . . . . . . . . . Process 1 | . . . . . . . . . . . 1 . . . . . . . . . . . . . . . . . . . . . . . . . . Retrieve Matter 1 | . . . . . . . . . . . 1 . . . . . . . . . . . . . . . . . . . . . . . . . . Retrieve Components 6 | . . . 1 . . . . . . . 1 . . . . . . . . . . 2 . . . . 2 . . . . . . . . . . Scanalyzer 8 | . . . 2 . . . 2 . . . . . . . . . . . . . . . . . . . . . . . . 3 . 1 . . . Retrieve Study 8 | . . . 2 . . . 2 . . . . . . . . . . . . . . . . . . . . . . . . 3 . 1 . . . Garrison Access Hacks 10 | . . . . . . . 1 . 2 . 1 . 1 . 1 . . . . . . . . . . . . . . . . 1 . 1 . 1 1 Unlock Access 7 | . . . . . . . 1 . 1 . 1 . 1 . 1 . . . . . . . . . . . . . . . . 1 . 1 . . . Seal Access 3 | . . . . . . . . . 1 . . . . . . . . . . . . . . . . . . . . . . . . . . 1 1 Unauthorized Hacks 51 | . 13 . 15 . . . 9 . 2 . 3 . . . 1 . 1 . . . . 3 . . . . . 3 . . 1 . . . . . . Terminals 50 | . 12 . 15 . . . 9 . 2 . 3 . . . 1 . 1 . . . . 3 . . . . . 3 . . 1 . . . . . . Assimilate 9 | . 1 . 6 . . . . . . . 2 . . . . . . . . . . . . . . . . . . . . . . . . . . Botnet 21 | . 4 . 3 . . . 4 . 1 . 1 . . . 1 . 1 . . . . 2 . . . . . 3 . . 1 . . . . . . Disrupt 1 | . 1 . . . . . . . . . . . . . . . . . . . . . . . . . . . . . . . . . . . . Operators 2 | . 1 . 1 . . . . . . . . . . . . . . . . . . . . . . . . . . . . . . . . . . Skim 17 | . 5 . 5 . . . 5 . 1 . . . . . . . . . . . . 1 . . . . . . . . . . . . . . . Fabricators . | . . . . . . . . . . . . . . . . . . . . . . . . . . . . . . . . . . . . . . Repair Stations . | . . . . . . . . . . . . . . . . . . . . . . . . . . . . . . . . . . . . . . Recycling Units 1 | . 1 . . . . . . . . . . . . . . . . . . . . . . . . . . . . . . . . . . . . Tunnel 1 | . 1 . . . . . . . . . . . . . . . . . . . . . . . . . . . . . . . . . . . . Scanalyzers . | . . . . . . . . . . . . . . . . . . . . . . . . . . . . . . . . . . . . . . Garrison Access . | . . . . . . . . . . . . . . . . . . . . . . . . . . . . . . . . . . . . . . Data Cores Recovered . | . . . . . . . . . . . . . . . . . . . . . . . . . . . . . . . . . . . . . . Used . | . . . . . . . . . . . . . . . . . . . . . . . . . . . . . . . . . . . . . . Hacking Detections 87 | . 7 . 15 . . . 14 2 6 . 9 . . 2 2 1 2 . . . . 4 . . . . 5 7 1 . 2 1 1 2 . 2 2 Full Trace Events 5 | . . . 1 . . . . 1 . . 1 . . . . . . . . . . . . . . . . . . . . 1 1 . . . . Feedback Events 1 | . . . . . . . . . . . . . . . . . . . . . . . . . . . . . . . . . 1 . . . . Hackware Fried 1 | . . . . . . . . . . . . . . . . . . . . . . . . . . . . . . . . . 1 . . . . Feedback Blocked . | . . . . . . . . . . . . . . . . . . . . . . . . . . . . . . . . . . . . . . Robot Schematics Acquired 4 | . . . . . . . . . . . . . . . . . . . . 4 . . . . . . . . . . . . . . . . . Robots Built . | . . . . . . . . . . . . . . . . . . . . . . . . . . . . . . . . . . . . . . Authchips . | . . . . . . . . . . . . . . . . . . . . . . . . . . . . . . . . . . . . . . Time . | . . . . . . . . . . . . . . . . . . . . . . . . . . . . . . . . . . . . . . Total Robot Build Rating . | . . . . . . . . . . . . . . . . . . . . . . . . . . . . . . . . . . . . . . Part Schematics Acquired 13 | . . . . . . . . . 1 . . . . . . . . . . 12 . . . . . . . . . . . . . . . . . Parts Built . | . . . . . . . . . . . . . . . . . . . . . . . . . . . . . . . . . . . . . . Authchips . | . . . . . . . . . . . . . . . . . . . . . . . . . . . . . . . . . . . . . . Time . | . . . . . . . . . . . . . . . . . . . . . . . . . . . . . . . . . . . . . . Total Part Build Rating . | . . . . . . . . . . . . . . . . . . . . . . . . . . . . . . . . . . . . . . Part Studies Acquired 8 | . . . 2 . . . 2 . . . . . . . . . . . . . . . . . . . . . . . . 3 . 1 . . . Parts Repaired 27 | . 3 . . . . . 11 . 2 . 3 . . . . . 1 . . . . 1 . . . . 6 . . . . . . . . . . Time 1320 | . 84 . . . . . 434 . 76 . 187 . . . . . 68 . . . . 151 . . . . 320 . . . . . . . . . . Parts Recycled . | . . . . . . . . . . . . . . . . . . . . . . . . . . . . . . . . . . . . . . Recycled Matter 313 | . . . . . . . . . . . 313 . . . . . . . . . . . . . . . . . . . . . . . . . . Retrieved Matter 347 | . . . . . . . . . . . 347 . . . . . . . . . . . . . . . . . . . . . . . . . . Retrieved Components 22 | . . . 10 . . . . . . . 2 . . . . . . . . . . 8 . . . . 2 . . . . . . . . . . Parts Scanalyzed . | . . . . . . . . . . . . . . . . . . . . . . . . . . . . . . . . . . . . . . Part Schematics Acquired . | . . . . . . . . . . . . . . . . . . . . . . . . . . . . . . . . . . . . . . Parts Damaged . | . . . . . . . . . . . . . . . . . . . . . . . . . . . . . . . . . . . . . . Bothacking | -11 -10 -10 -9 -9 -9 -8 -8 -8 -7 -7 -7 -7 -7 -7 -7 -7 -6 -6 -6 -6 -5 -5 -5 -5 -5 -4 -4 -4 -4 -4 -4 -3 -3 -3 -3 -2 -1 ------------ Run | Yrd Mat Min Mat Min Exi Min Mat Gar Fac Gar Fac Gar Fac Gar Fac Gar Fac Low Low Dat Pro Fac Upp Upp War Pro Fac Ext Cet Arc Hub Res Gar Res Gar Res Acc Used RIF Installer . | . . . . . . . . . . . . . . . . . . . . . . . . . . . . . . . . . . . . . . Robots Hacked . | . . . . . . . . . . . . . . . . . . . . . . . . . . . . . . . . . . . . . . Non-combat . | . . . . . . . . . . . . . . . . . . . . . . . . . . . . . . . . . . . . . . Combat . | . . . . . . . . . . . . . . . . . . . . . . . . . . . . . . . . . . . . . . Robot Hacks Applied . | . . . . . . . . . . . . . . . . . . . . . . . . . . . . . . . . . . . . . . Relay Couplers Released 127 | . . . . . . . . 20 . 18 . 21 . 26 . 18 . . . . . . . . . . . . . . . . 12 . 9 3 . Machine Destruction 119 | . . . . . . . . 16 . 18 . 21 . 22 . 18 . . . . . . . . . . . . . . . . 12 . 9 3 . Programmers 8 | . . . . . . . . 4 . . . . . 4 . . . . . . . . . . . . . . . . . . . . . . . Fabnet Peak Effective % . | . . . . . . . . . . . . . . . . . . . . . . . . . . . . . . . . . . . . . . Robots Rewired 51 | . . . . . . . . 2 . . . 12 . 2 . 4 . . 3 . . . 1 2 . . . 15 . . . . . . 10 . . Allies Hacked 4 | . . . . . . . . . 1 . . 1 . 2 . . . . . . . . . . . . . . . . . . . . . . . Hacks Repelled 1 | . . . . . . . . . . . . . . . . . . . . . . . . . . . . . . . . . . . . 1 . Allies | -11 -10 -10 -9 -9 -9 -8 -8 -8 -7 -7 -7 -7 -7 -7 -7 -7 -6 -6 -6 -6 -5 -5 -5 -5 -5 -4 -4 -4 -4 -4 -4 -3 -3 -3 -3 -2 -1 -------- Run | Yrd Mat Min Mat Min Exi Min Mat Gar Fac Gar Fac Gar Fac Gar Fac Gar Fac Low Low Dat Pro Fac Upp Upp War Pro Fac Ext Cet Arc Hub Res Gar Res Gar Res Acc Total Allies 72 | . 1 3 3 . . . . 2 . . 1 12 . 2 . 4 . . 3 . . . 1 2 . . . 23 5 . . . . . 10 . . Largest Group 10 | . 1 4 4 2 2 2 2 4 3 . 1 7 7 7 4 3 3 . 3 3 3 . 1 2 . . . 10 6 4 3 2 2 . 8 7 . Highest-Rated Group 632 | . 10 50 50 20 20 20 20 71 51 . 26 152 152 152 103 88 86 . 60 60 60 . 29 78 . . . 445 632 437 288 192 192 . 356 309 . Highest-Rated Ally 159 | . 10 16 16 10 10 10 10 31 31 . 26 30 26 31 31 40 40 . 20 20 20 . 29 49 . . . 159 159 149 96 96 96 . 148 47 . Initial Warlord ECA Mod 53 | . . . . . . . . . 9 9 16 16 27 27 37 37 44 44 44 44 43 43 43 43 43 42 42 42 42 42 42 41 41 47 47 53 52 Total Orders 81 | . . 4 4 4 . 2 2 17 2 . . 7 . 9 2 10 7 . . . 3 . . . . . . . . . . . . . . 6 2 STAY 37 | . . 2 3 2 . 1 1 10 1 . . 3 . 4 1 5 3 . . . 1 . . . . . . . . . . . . . . . . ROAM 6 | . . . . . . . . . . . . 1 . . . . . . . . 1 . . . . . . . . . . . . . . 4 . FOLLOW 33 | . . 2 1 2 . 1 1 7 . . . 3 . 5 1 5 4 . . . 1 . . . . . . . . . . . . . . . . EXPLORE 4 | . . . . . . . . . 1 . . . . . . . . . . . . . . . . . . . . . . . . . . 2 1 RETURN 1 | . . . . . . . . . . . . . . . . . . . . . . . . . . . . . . . . . . . . . 1 Ally Attacks 567 | . . . 24 . . . . 20 12 . . 38 . 72 26 12 4 . . . 4 . 3 5 . . . 172 43 18 6 . 23 . 41 44 . Total Damage 13604 | . . . 234 . . . . 246 192 . . 514 . 1345 509 211 80 . . . 147 . 20 59 . . . 4262 1553 657 179 . 832 . 1294 1270 . Kills 82 | . . . 4 . . . . 5 . . . 7 . 15 4 . 1 . . . . . . . . . . 19 8 3 1 . 4 . 4 7 . Allies Corrupted 2 | . . . . . . . . . . . . 1 . . . . . . . . . . . . . . . . . . . . . . . 1 . Allies Melted 2 | . . . . . . . . . . . . . . . . . . . . . . . . . . . . . . . . . . . 1 1 . Intel | -11 -10 -10 -9 -9 -9 -8 -8 -8 -7 -7 -7 -7 -7 -7 -7 -7 -6 -6 -6 -6 -5 -5 -5 -5 -5 -4 -4 -4 -4 -4 -4 -3 -3 -3 -3 -2 -1 ------- Run | Yrd Mat Min Mat Min Exi Min Mat Gar Fac Gar Fac Gar Fac Gar Fac Gar Fac Low Low Dat Pro Fac Upp Upp War Pro Fac Ext Cet Arc Hub Res Gar Res Gar Res Acc Active Infowar (turns) 35284 | 9 1834 1161 1012 1762 346 1122 2799 . 1484 496 1375 4 82 4 200 6 749 1413 1740 12 1755 1093 942 2125 875 1597 1049 2555 528 443 320 163 1236 184 2131 478 200 Optics 3662 | . . . . . . . . . . . . . . . . . . . . . . . . . . . 363 2555 345 399 . . . . . . . Sensors 9596 | . . . 2 . . . . . . . . . . . . . . 1379 1693 11 1755 . 940 1373 808 1597 38 . . . . . . . . . . Terrain 9040 | . . . . . . . . . . . 1342 4 82 4 200 6 749 1401 1735 12 1461 729 938 177 . . . . . . . . . . . . 200 Seismic 12056 | 9 1834 1161 1010 1762 346 1122 2799 . 1484 496 33 . . . . . . . . . . . . . . . . . . . . . . . . . . Decoding 423 | . . . . . . . . . . . . . . . . . . . . . . 423 . . . . . . . . . . . . . . . T.N.C. 2064 | . . . . . . . . . . . . . . . . . . . . . . . . . . . 357 1707 . . . . . . . . . Machine Analysis 9960 | . . . . . . . . . . . . . . . . . . . . . . 1092 . . . . 842 2555 528 443 320 163 1236 184 2119 478 . Jamming 5745 | . . . . . . . . . . . . . . . . . . . . . . 259 152 1488 190 . 375 2039 . . 107 163 290 . 660 22 . Robot Analysis Total 5 | . 3 . . . . . 2 . . . . . . . . . . . . . . . . . . . . . . . . . . . . . . Derelict Logs Recovered 6 | . . 1 . 1 . . . . . . . . . . . . . . 1 . . . . 1 . 2 . . . . . . . . . . . Drone Launches 20 | . . . . . . . . . 1 . . . . . . . . . . . . . . . . . . . . . . . . . . 17 2 Drone Recoveries 1 | . . . . . . . . . . . . . . . . . . . . . . . . . . . . . . . . . . . . . 1 Decoded 0b10 Intel 8 | . . . . . . . . . . . . . . . . . . . . . . 8 . . . . . . . . . . . . . . . Traps 7 | . . . . . . . . . . . . . . . . . . . . . . 7 . . . . . . . . . . . . . . . Emergency Access 1 | . . . . . . . . . . . . . . . . . . . . . . 1 . . . . . . . . . . . . . . . Exploration | -11 -10 -10 -9 -9 -9 -8 -8 -8 -7 -7 -7 -7 -7 -7 -7 -7 -6 -6 -6 -6 -5 -5 -5 -5 -5 -4 -4 -4 -4 -4 -4 -3 -3 -3 -3 -2 -1 ------------- Run | Yrd Mat Min Mat Min Exi Min Mat Gar Fac Gar Fac Gar Fac Gar Fac Gar Fac Low Low Dat Pro Fac Upp Upp War Pro Fac Ext Cet Arc Hub Res Gar Res Gar Res Acc Turns Passed 53083 | 78 1834 1161 2599 1762 346 1122 4550 1471 2222 866 1565 2013 152 1512 214 2034 751 1413 1964 135 1781 1592 1354 2191 875 1597 1595 2555 528 443 320 163 1236 184 2131 2460 2314 Spaces Moved 24025 | 34 841 630 1337 814 212 643 1951 785 993 485 937 869 86 626 96 675 307 795 978 77 867 619 592 795 471 842 532 858 238 143 169 91 476 107 805 1241 1008 Core 240 | 5 . . . . . . . . . . . . . . . . . . . . . . . . . . . . . . . . . . . . 235 Treads 16095 | 29 841 630 246 600 212 643 1112 542 458 . . 64 11 176 . 169 178 795 978 77 867 411 157 795 471 842 433 315 238 143 169 91 476 107 805 1241 773 Legs . | . . . . . . . . . . . . . . . . . . . . . . . . . . . . . . . . . . . . . . Wheels 7690 | . . . 1091 214 . . 839 243 535 485 937 805 75 450 96 506 129 . . . . 208 435 . . . 99 543 . . . . . . . . . Hover . | . . . . . . . . . . . . . . . . . . . . . . . . . . . . . . . . . . . . . . Flight . | . . . . . . . . . . . . . . . . . . . . . . . . . . . . . . . . . . . . . . Fastest Speed 50 | 50 160 160 115 115 160 160 100 110 130 130 115 115 115 115 130 115 130 170 170 170 170 103 145 163 163 166 130 130 161 162 162 152 152 160 160 155 50 Average Speed 156 | 145 160 160 130 189 160 160 138 145 143 132 119 136 136 159 130 146 170 170 170 170 170 158 181 211 165 166 165 162 171 162 162 159 155 160 164 161 140 Slowest Speed 480 | 160 160 160 240 240 160 160 160 157 320 145 145 240 240 240 130 240 250 170 170 170 170 480 252 330 166 166 330 242 241 162 162 162 160 160 241 260 270 Overloaded Moves . | . . . . . . . . . . . . . . . . . . . . . . . . . . . . . . . . . . . . . . Propulsion Burnouts . | . . . . . . . . . . . . . . . . . . . . . . . . . . . . . . . . . . . . . . Robots Hopped . | . . . . . . . . . . . . . . . . . . . . . . . . . . . . . . . . . . . . . . Potential Cave-ins 19 | . . . . . . . . . 3 . . . . . . . . . 2 . . 2 . . . 2 10 . . . . . . . . . . Cave-ins Triggered 7 | . . . . . . . . . 2 . . . . . . . . . . . . . . . . . 4 . . . 1 . . . . . . Exploration Rate (%) 58 | 4 96 96 94 99 60 96 93 91 49 55 23 93 3 92 4 80 8 76 95 68 85 18 65 78 71 71 12 85 70 82 13 2 63 4 57 66 23 Regions Visited 37 Branch Regions 16 Pre-discovered Areas 13 | . 4 . 4 . . . 1 . . . . . . . . . . 1 . 1 . . . . . 2 . . . . . . . . . . . Known Exits Taken 18 | . 1 1 1 . 1 . 1 . 1 . 1 . 1 . 1 . 1 1 1 1 . 1 . . . . 1 . . . 1 1 . 1 . . . Unknown Exits Taken 12 | 1 . . . 1 . 1 . . . . . . . . . . . . . . 1 . 1 1 1 1 . 1 1 1 . . . . . 1 . Scrap Searched 25 | . . 1 . 3 . 1 . . . . . . . . . . . 2 11 . 2 . 1 3 . 1 . . . . . . . . . . . Spaces Dug 248 | . 7 2 9 3 . 3 30 . 26 . 19 24 . 2 3 12 10 . 19 . 7 11 . 2 . 8 25 2 . . 7 . 5 3 2 5 2 Terrain Destroyed 1972 | . 20 4 39 128 . 50 105 115 52 249 31 287 . 85 6 22 31 5 30 . 15 52 44 54 . 25 27 11 2 21 11 . 99 3 38 23 288 Melee 133 | . . . 2 . . 3 17 . 26 . 17 23 . 1 . 3 4 . . . . 2 . . . . 23 1 . . 4 . 5 . . . 2 Projectile 494 | . 20 4 11 4 . . 60 1 6 1 5 3 . 10 5 9 21 5 30 . 15 30 12 12 . 25 4 5 2 21 7 . 14 3 12 23 114 AOE 1325 | . . . 26 124 . 47 28 114 20 248 9 261 . 74 . 9 6 . . . . 12 32 40 . . . . . . . . 79 . 24 . 172 Terrain Rammed . | . . . . . . . . . . . . . . . . . . . . . . . . . . . . . . . . . . . . . . Walls Destroyed . | . . . . . . . . . . . . . . . . . . . . . . . . . . . . . . . . . . . . . . Machines Disabled . | . . . . . . . . . . . . . . . . . . . . . . . . . . . . . . . . . . . . . . Actions | -11 -10 -10 -9 -9 -9 -8 -8 -8 -7 -7 -7 -7 -7 -7 -7 -7 -6 -6 -6 -6 -5 -5 -5 -5 -5 -4 -4 -4 -4 -4 -4 -3 -3 -3 -3 -2 -1 --------- Run | Yrd Mat Min Mat Min Exi Min Mat Gar Fac Gar Fac Gar Fac Gar Fac Gar Fac Low Low Dat Pro Fac Upp Upp War Pro Fac Ext Cet Arc Hub Res Gar Res Gar Res Acc Total 35406 | 50 1163 743 1982 965 219 692 3531 983 1634 626 1289 1400 120 942 139 1391 465 849 1232 82 1154 1002 762 1191 558 1013 1079 1869 314 284 198 109 791 115 1364 1601 1505 Wait 6953 | 2 214 86 472 89 6 19 1311 94 483 35 226 170 26 149 16 444 91 29 171 2 248 173 44 261 35 137 358 637 9 90 6 2 179 3 279 177 180 Move 23989 | 33 840 629 1336 813 211 642 1951 784 993 484 937 868 85 625 96 673 306 794 977 76 866 618 591 794 470 841 529 857 237 142 168 91 474 107 803 1240 1008 Hop . | . . . . . . . . . . . . . . . . . . . . . . . . . . . . . . . . . . . . . . Pick Up 362 | 3 11 6 22 3 1 . 25 4 10 6 17 18 2 16 1 15 7 4 7 1 6 21 8 5 12 . 20 24 10 5 1 2 6 . 19 22 22 Fast Attach 257 | 6 6 . 4 . . . 14 1 10 3 9 5 1 1 . 4 1 5 2 . 2 10 4 18 3 3 21 19 4 3 3 4 10 . 19 36 26 Attach 211 | 1 . . 3 1 . . 6 1 8 . 6 12 3 11 2 13 6 2 5 2 2 20 9 4 6 . 13 11 7 1 2 2 6 . 15 10 21 Detach 41 | . 1 . . . . . . . 1 . 2 1 . . . . . . . . . 3 2 1 2 . 3 5 2 . . 2 6 . 2 2 6 Swap 385 | . 8 1 23 5 . 4 30 8 14 13 15 28 1 6 . 18 8 . 7 . 5 23 15 17 13 1 20 16 5 . 5 1 13 2 20 17 23 Drop 472 | . 9 1 20 2 1 . 33 3 18 10 16 26 2 17 1 17 3 9 9 1 8 11 2 14 13 3 18 39 15 7 3 5 13 . 32 58 33 Fire 1899 | 5 74 20 100 45 . 7 122 82 42 38 18 88 . 109 23 148 38 6 40 . 17 121 61 61 4 28 50 91 24 36 6 . 79 3 124 39 150 Melee 416 | . . . 2 7 . 20 39 4 54 21 43 107 . 1 . 38 5 . . . . 2 2 2 . . 45 2 1 . 4 . 5 . . . 12 Ram 5 | . . . . . . . . . . . . . . . . . . . . . . . . . . . . . . . . . . . . . 5 Kick . | . . . . . . . . . . . . . . . . . . . . . . . . . . . . . . . . . . . . . . Crush 20 | . . . . . . . . . 1 . . . . . . . . . . . . . . . . . . . . . . . . . . . 19 Escape Stasis 68 | . . . . . . . . . . 16 . 10 . . . . . . . . . . . . . . 2 40 . . . . . . . . . Rewire 328 | . . . . . . . . 2 . . . 67 . 7 . 21 . . 14 . . . 24 14 . . . 128 . . . . . . 51 . . Trap . | . . . . . . . . . . . . . . . . . . . . . . . . . . . . . . . . . . . . . . Miscellaneous . | . . . . . . . . . . . . . . . . . . . . . . . . . . . . . . . . . . . . . . Route ------- -11/Scrapyard -10/Materials (discovered 6 exits: *Mat x3 / *Min x2 / Sub) -10/Mines (discovered 2 exits: *Mat x2) -9/Materials (discovered 4 exits: *Mat x3 / *Min) -9/Mines (discovered 4 exits: *Mat x2 / *Exi / [*Zio]) -9/Exiles -8/Mines -8/Materials (discovered 5 exits: *Fac x3 / *Sto / Gar) -8/Garrison (discovered 3 exits: *Fac x3) -7/Factory (discovered 2 exits: *Fac / Gar) -7/Garrison -7/Factory (discovered 2 exits: [*Low] / Gar) -7/Garrison (discovered 4 exits: *Fac x3 / *Fac) -7/Factory -7/Garrison (discovered 3 exits: *Fac x3) -7/Factory -7/Garrison (discovered 3 exits: *Fac x3) -6/Factory (discovered 2 exits: *Low x2) -6/Lower Caves -6/Lower Caves (discovered 2 exits: *Fac / *Dat) -6/Data Miner -5/Proximity Caves -5/Factory (discovered 2 exits: *Upp x2) -5/Upper Caves -5/Upper Caves (discovered 2 exits: *Fac / *War) -5/Warlord -4/Proximity Caves -4/Factory (discovered 4 exits: Res / Upp / *Ext x2) -4/Extension (discovered 2 exits: *Res / *Cet) -4/Cetus (discovered 2 exits: *Res / [*Arc]) -4/Archives (discovered 3 exits: *Res / *Hub x2) -4/Hub_04(d) -3/Research -3/Garrison (discovered 2 exits: *Res x2) -3/Research -3/Garrison (discovered 2 exits: *Res x2) -2/Research (discovered 5 exits: *Acc x3 / [*Tes x2]) -1/Access History --------- Turn | Location | Event 32 | -11/Scrapyard | Discovered new exit (range 15) 79 | -11/Scrapyard | Entered Materials 139 | -10/Materials | Discovered new exit (range 12) 310 | -10/Materials | Build established: Mutant 351 | -10/Materials | Discovered new exit (range 15) 1085 | -10/Materials | Central database locked down 1092 | -10/Materials | Discovered new exit (range 5) 1271 | -10/Materials | Learned location of Mines (-8) 1393 | -10/Materials | Discovered new exit (range 12) 1414 | -10/Materials | Identified exit to Materials 1414 | -10/Materials | Identified exit to Subcaves 1457 | -10/Materials | Learned location of Storage (-8) 1463 | -10/Materials | Identified exit to Mines 1481 | -10/Materials | Loaded intel: 1 repair station location 1507 | -10/Materials | Loaded intel: 24 trap records 1545 | -10/Materials | Learned Storage emergency access door positions 1591 | -10/Materials | Learned Storage garrison access intel 1671 | -10/Materials | Repaired Imp. Light Cannon 1700 | -10/Materials | Repaired Lgt. Treads 1727 | -10/Materials | Repaired Lgt. Treads 1913 | -10/Materials | Entered Mines 1913 | -10/Mines | Accompanied by 1 ally 1967 | -10/Mines | Discovered exit to Materials (range 5) 1980 | -10/Mines | Learned Materials terminal intel 2130 | -10/Mines | Assembled infested the area 2419 | -10/Mines | Found a damaged Exp. Sensor Array with a note attached 2423 | -10/Mines | Found Prototype Device 2513 | -10/Mines | Assisted by bots powering up and referring to "LRC-V3" 2571 | -10/Mines | Received a Rocket Launcher from a helpful Derelict 2790 | -10/Mines | Discovered exit to Materials (range 7) 2808 | -10/Mines | Build established: Commander-Mutant 3074 | -10/Mines | Entered Materials 3074 | -9/Materials | Accompanied by 4 allies 3074 | -9/Materials | Evolved 2 slots: Propulsion x2 3075 | -9/Materials | Identified exit to Mines 3076 | -9/Materials | Loaded intel: 12 terminal locations 3303 | -9/Materials | Identified Exp. Sensor Array 3312 | -9/Materials | Discovered new exit (range 16) 3676 | -9/Materials | Build established: Mutant 4382 | -9/Materials | Discovered new exit (range 15) 5125 | -9/Materials | Central database locked down 5238 | -9/Materials | Build established: Scavenger-Mutant 5240 | -9/Materials | Discovered new exit (range 15) 5370 | -9/Materials | Learned location of Zion (-7) 5512 | -9/Materials | Learned location of Recycling (-8) 5673 | -9/Materials | Entered Mines 5673 | -9/Mines | Accompanied by 2 allies 5969 | -9/Mines | Discovered new exit (range 7) 6319 | -9/Mines | Learned Materials interactive machine intel 6326 | -9/Mines | Deemed a non-threat by the Exiles lab entrance 6326 | -9/Mines | Discovered new exit (range 5) 6567 | -9/Mines | A Derelict revealed a hidden shortcut to a safe place 6652 | -9/Mines | Found a hidden stash of uninstalled traps 6828 | -9/Mines | Excavation squad dispatched 6828 | -9/Mines | A large section of the Mines collapsed 7078 | -9/Mines | Discovered new exit (range 12) 7435 | -9/Mines | Entered Exiles 7435 | -9/Exiles | Accompanied by 2 allies 7436 | -9/Exiles | Identified exit to Mines 7472 | -9/Exiles | Met 8R-AWN 7501 | -9/Exiles | Met EX-HEX 7552 | -9/Exiles | Met EX-BIN 7570 | -9/Exiles | Aligned with FarCom system 7571 | -9/Exiles | Given EX-Vault access code 7611 | -9/Exiles | Opened EX-Vault 7620 | -9/Exiles | Found Supersonic Drone Bay 7656 | -9/Exiles | Warned to stay clear of 0b10 Research branches 7699 | -9/Exiles | Met EX-DEC 7781 | -9/Exiles | Left Exiles lab with Supersonic Drone Bay 7781 | -9/Exiles | Entered Mines 7781 | -8/Mines | Accompanied by 2 allies 8335 | -8/Mines | Discovered new exit (range 13) 8903 | -8/Mines | Entered Materials 8903 | -8/Materials | Accompanied by 2 allies 8903 | -8/Materials | Evolved 2 slots: Propulsion x2 8904 | -8/Materials | Identified exit to Storage 8905 | -8/Materials | Loaded intel: 19 interactive machine locations 9689 | -8/Materials | Discovered new exit (range 16) 9720 | -8/Materials | Identified exit to Factory 9741 | -8/Materials | Learned location of 1 exit from Extension 9750 | -8/Materials | Learned Storage emergency access door positions 9751 | -8/Materials | Learned location of 1 exit from Recycling 9757 | -8/Materials | Learned location of 1 exit from Storage 9772 | -8/Materials | Learned Factory non-interactive machine intel 9798 | -8/Materials | Learned Factory interactive machine intel 9978 | -8/Materials | Discovered exit to Factory (range 12) 10413 | -8/Materials | Build established: Mutant 10768 | -8/Materials | Repaired Imp. Treads 10802 | -8/Materials | Repaired Imp. Treads 10835 | -8/Materials | Repaired Imp. Treads 10945 | -8/Materials | Repaired Exp. Sensor Array 10991 | -8/Materials | Repaired Imp. Treads 11018 | -8/Materials | Repaired Seismic Detector 12284 | -8/Materials | Repaired Assault Cannon+ 12317 | -8/Materials | Repaired Imp. Treads 12351 | -8/Materials | Repaired Imp. Treads 12390 | -8/Materials | Repaired Assault Cannon+ 12424 | -8/Materials | Repaired Imp. Treads 13453 | -8/Materials | Identified exit to Garrison 13453 | -8/Materials | Entered Garrison 13453 | -8/Garrison | Accompanied by 2 allies 13531 | -8/Garrison | Triggered checkpoint 13565 | -8/Garrison | Garrison Relay disabled 13602 | -8/Garrison | Triggered checkpoint 13655 | -8/Garrison | Destroyed 8 combat bots 13856 | -8/Garrison | Discovered exit to Factory (range 3) 14017 | -8/Garrison | Triggered checkpoint 14035 | -8/Garrison | Garrison Relay disabled 14270 | -8/Garrison | Build established: Commander-Mutant 14282 | -8/Garrison | Garrison Relay disabled 14322 | -8/Garrison | Discovered exit to Factory (range 11) 14366 | -8/Garrison | Garrison Relay disabled 14419 | -8/Garrison | Triggered checkpoint 14616 | -8/Garrison | Discovered exit to Factory (range 12) 14712 | -8/Garrison | Triggered checkpoint 14808 | -8/Garrison | Phase Generator disabled 14817 | -8/Garrison | Garrison Relay disabled 14846 | -8/Garrison | Discovered exit to Factory (range 75) 14846 | -8/Garrison | Discovered exit to Factory (range 42) 14846 | -8/Garrison | Discovered exit to Factory (range 36) 14924 | -8/Garrison | Entered Factory 14924 | -7/Factory | Accompanied by 3 allies 14924 | -7/Factory | Evolved 2 slots: Utility x2 14925 | -7/Factory | Loaded intel: 236 non-interactive machine locations 14926 | -7/Factory | Loaded intel: 52 interactive machine locations 14947 | -7/Factory | Discovered new exit (range 178) 15028 | -7/Factory | Repaired Adv. Treads 15049 | -7/Factory | Build established: Mutant 15067 | -7/Factory | Repaired Assault Cannon+ 15120 | -7/Factory | Garrison activated, responded to threat 15702 | -7/Factory | Crushed by falling debris 15706 | -7/Factory | Crushed by falling debris 17146 | -7/Factory | Identified exit to Garrison 17146 | -7/Factory | Entered Garrison 17170 | -7/Garrison | Triggered checkpoint 17186 | -7/Garrison | Garrison Relay disabled 17271 | -7/Garrison | Destroyed 10 combat bots 17334 | -7/Garrison | Triggered checkpoint 17357 | -7/Garrison | Garrison Relay disabled 17584 | -7/Garrison | Triggered checkpoint 17638 | -7/Garrison | Phase Generator disabled 17666 | -7/Garrison | Triggered checkpoint 17738 | -7/Garrison | Triggered checkpoint 17799 | -7/Garrison | Garrison Relay disabled 17829 | -7/Garrison | Discovered new exit (range 10) 17883 | -7/Garrison | Assembled breached garrison interior 17979 | -7/Garrison | Destroyed 10 combat bots 18012 | -7/Garrison | Entered Factory 18672 | -7/Factory | Build established: Assassin 18921 | -7/Factory | Repaired Broken Arm. Huge Wheel 18954 | -7/Factory | Repaired Mni. Grenade Launcher+ 19005 | -7/Factory | Repaired Imp. Heavy Armor Plating 19489 | -7/Factory | Discovered new exit (range 5) 19577 | -7/Factory | Identified exit to Garrison 19577 | -7/Factory | Entered Garrison 19577 | -7/Garrison | Accompanied by 1 ally 19684 | -7/Garrison | Heavy support dispatched to Factory 19885 | -7/Garrison | Build established: Mutant 19932 | -7/Garrison | Triggered checkpoint 19976 | -7/Garrison | Garrison Relay disabled 20018 | -7/Garrison | Heavy support dispatched to Factory 20079 | -7/Garrison | Triggered checkpoint 20082 | -7/Garrison | Triggered checkpoint 20140 | -7/Garrison | Destroyed 8 combat bots 20177 | -7/Garrison | Triggered checkpoint 20237 | -7/Garrison | Triggered checkpoint 20279 | -7/Garrison | Discovered new exit (range 3) 20380 | -7/Garrison | Garrison Relay disabled 20384 | -7/Garrison | Triggered checkpoint 20408 | -7/Garrison | Discovered new exit (range 9) 20473 | -7/Garrison | P-60 Hacker assimilated allied Fighter 4c 20540 | -7/Garrison | Heavy support dispatched to Factory 20646 | -7/Garrison | Garrison Relay disabled 20767 | -7/Garrison | Triggered checkpoint 20845 | -7/Garrison | Discovered new exit (range 14) 20861 | -7/Garrison | Lost 3 allies 20899 | -7/Garrison | Triggered checkpoint 20906 | -7/Garrison | Phase Generator disabled 20922 | -7/Garrison | Garrison Relay disabled 21174 | -7/Garrison | Discovered new exit (range 10) 21232 | -7/Garrison | H-XX Assembler disabled 21375 | -7/Garrison | Triggered checkpoint 21397 | -7/Garrison | Garrison Relay disabled 21426 | -7/Garrison | Build established: Commander-Mutant 21590 | -7/Garrison | Entered Factory 21590 | -7/Factory | Accompanied by 7 allies 21736 | -7/Factory | Identified exit to Garrison 21742 | -7/Factory | Entered Garrison 21742 | -7/Garrison | Accompanied by 7 allies 21806 | -7/Garrison | Triggered checkpoint 21882 | -7/Garrison | Triggered checkpoint 22058 | -7/Garrison | Triggered checkpoint 22102 | -7/Garrison | Triggered checkpoint 22123 | -7/Garrison | Triggered checkpoint 22142 | -7/Garrison | Triggered checkpoint 22250 | -7/Garrison | Discovered new exit (range 10) 22260 | -7/Garrison | Triggered checkpoint 22333 | -7/Garrison | Learned Factory security intel 22355 | -7/Garrison | Garrison Relay disabled 22390 | -7/Garrison | Phase Generator disabled 22565 | -7/Garrison | Build established: Mutant 22630 | -7/Garrison | Triggered checkpoint 22741 | -7/Garrison | Garrison Relay disabled 22752 | -7/Garrison | Garrison Relay disabled 22762 | -7/Garrison | Triggered checkpoint 22944 | -7/Garrison | Discovered new exit (range 12) 23112 | -7/Garrison | Triggered checkpoint 23134 | -7/Garrison | Garrison Relay disabled 23158 | -7/Garrison | Discovered new exit (range 14) 23254 | -7/Garrison | Entered Factory 23254 | -7/Factory | Accompanied by 4 allies 23392 | -7/Factory | Garrison activated, responded to threat 23462 | -7/Factory | Lost 3 allies 23468 | -7/Factory | Identified exit to Garrison 23468 | -7/Factory | Entered Garrison 23468 | -7/Garrison | Accompanied by 1 ally 23498 | -7/Garrison | Triggered checkpoint 23512 | -7/Garrison | Garrison Relay disabled 23812 | -7/Garrison | Triggered checkpoint 23989 | -7/Garrison | Core integrity fell below 50% 24176 | -7/Garrison | Triggered checkpoint 24202 | -7/Garrison | Triggered checkpoint 24358 | -7/Garrison | Triggered checkpoint 24695 | -7/Garrison | Triggered checkpoint 24809 | -7/Garrison | Garrison Relay disabled 24874 | -7/Garrison | Garrison Relay disabled 24938 | -7/Garrison | Triggered checkpoint 25027 | -7/Garrison | Discovered new exit (range 12) 25166 | -7/Garrison | Discovered new exit (range 14) 25178 | -7/Garrison | Triggered checkpoint 25283 | -7/Garrison | Garrison Relay disabled 25332 | -7/Garrison | Attempted to access garrison exit controls, blocked by remote lockdown 25482 | -7/Garrison | Discovered new exit (range 12) 25502 | -7/Garrison | Entered Factory 25502 | -6/Factory | Accompanied by 3 allies 25502 | -6/Factory | Evolved 2 slots: Utility x2 25852 | -6/Factory | First assault squad dispatched 25934 | -6/Factory | Identified exit to Lower Caves 25951 | -6/Factory | Build established: Skirmisher 26128 | -6/Factory | Repaired Arm. Heavy Treads 26253 | -6/Factory | Entered Lower Caves 26255 | -6/Lower Caves | Attracted the attention of an 0b10 checkpoint 26279 | -6/Lower Caves | Met a Warlord Commander 26280 | -6/Lower Caves | Learned location of Warlord (-5) 26281 | -6/Lower Caves | Warlord Commander delivered Encrypted Comm Array 26288 | -6/Lower Caves | Found Encrypted Comm Array 27329 | -6/Lower Caves | Encountered a Warlord checkpoint 27512 | -6/Lower Caves | Discovered new exit (range 5) 27665 | -6/Lower Caves | Identified exit to Lower Caves 27666 | -6/Lower Caves | Entered another Lower Caves area 27762 | -6/Lower Caves | Discovered new exit (range 3) 28831 | -6/Lower Caves | Identified exit to Data Miner 29551 | -6/Lower Caves | Attacked by a delusional Derelict stockpiling Unaware 29630 | -6/Lower Caves | Entered Data Miner 29630 | -6/Data Miner | Accompanied by 3 allies 29630 | -6/Data Miner | Discovered new exit (range 6) 29663 | -6/Data Miner | Met Data Miner 29693 | -6/Data Miner | Learned location of Section 7 (-3) 29693 | -6/Data Miner | Acquired the access code to Warlord's prototype stash 29717 | -6/Data Miner | Received God Mode back door access code from Data Miner 29763 | -6/Data Miner | Identified exit to Proximity Caves 29765 | -6/Data Miner | Entered Proximity Caves 29765 | -5/Proximity Caves | Accompanied by 3 allies 30127 | -5/Proximity Caves | Lost 3 allies 30790 | -5/Proximity Caves | Attracted the attention of an 0b10 checkpoint 30959 | -5/Proximity Caves | Discovered new exit (range 11) 31545 | -5/Proximity Caves | Build established: Mutant 31546 | -5/Proximity Caves | Entered Factory 31546 | -5/Factory | Evolved 2 slots: Utility x2 31975 | -5/Factory | Build established: Skirmisher 32464 | -5/Factory | Repaired Imp. Kinecellerator 32562 | -5/Factory | Cargo convoy interrupted 32580 | -5/Factory | Incoming assault squad redirected 32584 | -5/Factory | System corruption reached 10% 32693 | -5/Factory | Lost 8 parts (5n1u2w) 32825 | -5/Factory | Identified exit to Upper Caves 32989 | -5/Factory | Build established: Scavenger-Mutant 33056 | -5/Factory | Lost 4 parts (2n1u1w) 33138 | -5/Factory | Entered Upper Caves 33957 | -5/Upper Caves | Attracted the attention of an 0b10 outpost 34045 | -5/Upper Caves | Core integrity fell below 50% 34056 | -5/Upper Caves | Lost 6 parts (2n4u) 34388 | -5/Upper Caves | System corruption reached 30% 34457 | -5/Upper Caves | Discovered new exit (range 14) 34492 | -5/Upper Caves | Entered another Upper Caves area 34597 | -5/Upper Caves | Discovered new exit (range 11) 34654 | -5/Upper Caves | Attracted the attention of an 0b10 outpost 34700 | -5/Upper Caves | Lost 3 parts (2n1u) 34777 | -5/Upper Caves | Lost 4 parts (3u1w) 35770 | -5/Upper Caves | Encountered a Warlord checkpoint 36206 | -5/Upper Caves | Discovered new exit (range 7) 36683 | -5/Upper Caves | Entered Warlord 36741 | -5/Warlord | System corruption cleaned by Quarantine Array 36852 | -5/Warlord | Opened Warlord's prototype stash 36862 | -5/Warlord | Found Prototype Processor 36862 | -5/Warlord | Identified Exp. Targeting Computer 36880 | -5/Warlord | Found Prototype Device 36880 | -5/Warlord | Identified Thermal Barrier 36888 | -5/Warlord | Found Prototype Hackware 36892 | -5/Warlord | Found Prototype Processor 37044 | -5/Warlord | Visited the Vortex Lab 37055 | -5/Warlord | Found Prototype Piercing Weapon 37056 | -5/Warlord | Identified Vortex Lance 37057 | -5/Warlord | Warlord's base attacked by MAIN.C 37065 | -5/Warlord | Found Prototype Energy Gun 37068 | -5/Warlord | Found Prototype Energy Gun 37069 | -5/Warlord | Identified Vortex Rifle (x2) 37378 | -5/Warlord | Met Warlord 37407 | -5/Warlord | Warlord forces counterattacked 37516 | -5/Warlord | Lost 15 allies 37535 | -5/Warlord | Discovered new exit (range 13) 37558 | -5/Warlord | Entered Proximity Caves 38214 | -4/Proximity Caves | Learned location of Testing (-2) 38282 | -4/Proximity Caves | Learned location of Quarantine (-3) 38701 | -4/Proximity Caves | Discovered new exit (range 12) 39155 | -4/Proximity Caves | Entered Factory 39155 | -4/Factory | Evolved 2 slots: Power x1, Utility x1 39156 | -4/Factory | Identified exit to Upper Caves 39156 | -4/Factory | Identified exit to Extension 39246 | -4/Factory | Identified System Mapper 39317 | -4/Factory | Repaired Arm. Heavy Treads 39386 | -4/Factory | Repaired Adv. Force Field 39438 | -4/Factory | Repaired Hyp. Gauss Rifle 39489 | -4/Factory | Repaired Hyp. Gauss Rifle 39538 | -4/Factory | Repaired Arm. Medium Treads 39638 | -4/Factory | Unchained authorized (CL-0N3) 39678 | -4/Factory | Exiles provided nearest exit location to -3/Research 39730 | -4/Factory | Repaired Arm. Medium Treads 39888 | -4/Factory | U-05 Engineer reconstituted as Thunder 39921 | -4/Factory | Spotted Thunder 39937 | -4/Factory | Destroyed Thunder 39937 | -4/Factory | Thunder reconstituted as CL-0N3 39957 | -4/Factory | Lost 3 parts (1n1u1w) 40093 | -4/Factory | Garrison activated, responded to threat 40125 | -4/Factory | Crushed by falling debris 40125 | -4/Factory | System corruption reached 10% 40128 | -4/Factory | Crushed by falling debris 40133 | -4/Factory | Crushed by falling debris 40164 | -4/Factory | Lost 8 parts (1p1n6u) 40173 | -4/Factory | Crushed by falling debris 40268 | -4/Factory | System corruption reached 30% 40570 | -4/Factory | R-10 Processor reconstituted as Hotshot 40570 | -4/Factory | Spotted Hotshot 40586 | -4/Factory | Destroyed Hotshot 40586 | -4/Factory | Hotshot reconstituted as CL-0N3 40635 | -4/Factory | Build established: Scavenger-Assassin 40743 | -4/Factory | Discovered exit to Extension (range 6) 40750 | -4/Factory | Entered Extension 40815 | -4/Extension | Rescued a captive Derelict 40816 | -4/Extension | Rescued a captive Derelict 41092 | -4/Extension | Build established: Scavenger-Skirmisher 41746 | -4/Extension | Lost 3 parts (1p1u1w) 41771 | -4/Extension | Spotted B-86 Titan 42098 | -4/Extension | Rescued a captive Derelict 42125 | -4/Extension | Rescued a captive Derelict 42126 | -4/Extension | Rescued a captive Derelict 42387 | -4/Extension | Allies destroyed B-86 Titan 42389 | -4/Extension | Spotted B-86 Titan 42407 | -4/Extension | Allies destroyed B-86 Titan 42490 | -4/Extension | Rescued a captive Derelict 42607 | -4/Extension | Lost 5 allies 42827 | -4/Extension | Identified Exp. Core Analyzer 43001 | -4/Extension | Lost 3 allies 43011 | -4/Extension | Rescued a captive Derelict 43138 | -4/Extension | Rescued A7 43142 | -4/Extension | Lost 3 allies 43254 | -4/Extension | Discovered new exit (range 6) 43305 | -4/Extension | Entered Cetus 43305 | -4/Cetus | Accompanied by 4 allies (A7) 43310 | -4/Cetus | Acquired a Cetus Manufacturing Module code from A7 43326 | -4/Cetus | Spotted Cetus Guard 43326 | -4/Cetus | Spotted Cetus Guard 43331 | -4/Cetus | Spotted Cetus Guard 43334 | -4/Cetus | Allies destroyed Cetus Guard 43344 | -4/Cetus | Spotted Cetus Guard 43358 | -4/Cetus | Allies destroyed Cetus Guard 43361 | -4/Cetus | Allies destroyed Cetus Guard 43371 | -4/Cetus | Allies destroyed Cetus Guard 43383 | -4/Cetus | Lost 3 allies 43469 | -4/Cetus | Escorted A7 to Cetus Mainframe 43493 | -4/Cetus | Started Cetus Manufacturing Module 43518 | -4/Cetus | Manufactured an Enhanced Grunt 43543 | -4/Cetus | Manufactured an Enhanced Grunt 43568 | -4/Cetus | Manufactured an Enhanced Grunt 43593 | -4/Cetus | Manufactured an Enhanced Grunt 43618 | -4/Cetus | Manufactured an Enhanced Grunt 43636 | -4/Cetus | Discovered new exit (range 21) 43667 | -4/Cetus | Spotted Cetus Guard 43669 | -4/Cetus | Spotted Cetus Guard 43669 | -4/Cetus | Spotted Cetus Guard 43673 | -4/Cetus | Spotted Cetus Guard 43685 | -4/Cetus | Discovered exit to Research (range 22) 43689 | -4/Cetus | Allies destroyed Cetus Guard 43697 | -4/Cetus | Allies destroyed Cetus Guard 43699 | -4/Cetus | Allies destroyed Cetus Guard 43705 | -4/Cetus | Destroyed Cetus Guard 43726 | -4/Cetus | Met Revision 17 43833 | -4/Cetus | Entered Archives 43833 | -4/Archives | Accompanied by 4 allies (A7) 43838 | -4/Archives | Received a hacking code to weaken MAIN.C 43997 | -4/Archives | Discovered exit to Research (range 19) 44008 | -4/Archives | Discovered new exit (range 18) 44017 | -4/Archives | Discovered new exit (range 14) 44276 | -4/Archives | Entered Hub_04(d) 44276 | -4/Hub_04(d) | Accompanied by 3 allies 44362 | -4/Hub_04(d) | Discovered exit to Research (range 3) 44484 | -4/Hub_04(d) | Crushed by falling debris 44523 | -4/Hub_04(d) | Build established: Scavenger-Mutant 44596 | -4/Hub_04(d) | Entered Research 44596 | -3/Research | Accompanied by 2 allies 44596 | -3/Research | Evolved 2 slots: Utility x1, Weapon x1 44759 | -3/Research | Identified exit to Garrison 44759 | -3/Research | Entered Garrison 44759 | -3/Garrison | Accompanied by 2 allies 44845 | -3/Garrison | Phase Generator disabled 45022 | -3/Garrison | Triggered checkpoint 45162 | -3/Garrison | Build established: Scavenger-Tank 45300 | -3/Garrison | Garrison Relay disabled 45303 | -3/Garrison | Imp. Hacking Suite fried by hacking feedback 45456 | -3/Garrison | Triggered checkpoint 45479 | -3/Garrison | Spotted B-86 Titan 45501 | -3/Garrison | Triggered checkpoint 45523 | -3/Garrison | Destroyed B-86 Titan 45655 | -3/Garrison | Discovered new exit (range 15) 45667 | -3/Garrison | Triggered checkpoint 45715 | -3/Garrison | Garrison Relay disabled 45772 | -3/Garrison | Attempted to access garrison exit controls, blocked by remote lockdown 45938 | -3/Garrison | Garrison Relay disabled 45979 | -3/Garrison | Discovered new exit (range 11) 45995 | -3/Garrison | Entered Research 46179 | -3/Research | Identified exit to Garrison 46179 | -3/Research | Entered Garrison 46189 | -3/Garrison | Spotted B-75 Beast 46229 | -3/Garrison | Destroyed B-75 Beast 46370 | -3/Garrison | Rewired B-90 Cyclops 46406 | -3/Garrison | Rewired B-86 Titan 46519 | -3/Garrison | Triggered checkpoint 46568 | -3/Garrison | Garrison Relay disabled 46752 | -3/Garrison | Triggered checkpoint 46762 | -3/Garrison | Spotted B-86 Titan 46814 | -3/Garrison | Destroyed B-86 Titan 46888 | -3/Garrison | Lost 4 parts (2u2w) 46921 | -3/Garrison | Spotted B-86 Titan 47141 | -3/Garrison | Destroyed B-86 Titan 47595 | -3/Garrison | Triggered checkpoint 47642 | -3/Garrison | Discovered new exit (range 15) 47659 | -3/Garrison | Triggered checkpoint 47685 | -3/Garrison | Attempted to access garrison exit controls, blocked by remote lockdown 47769 | -3/Garrison | Destroyed 10 combat bots 47950 | -3/Garrison | Garrison Relay disabled 48121 | -3/Garrison | Discovered new exit (range 10) 48159 | -3/Garrison | Triggered checkpoint 48241 | -3/Garrison | Garrison Relay disabled 48310 | -3/Garrison | Entered Research 48310 | -2/Research | Accompanied by 7 allies 48310 | -2/Research | Warlord forces began assault on 0b10 48310 | -2/Research | Evolved 2 slots: Weapon x2 48335 | -2/Research | Distinguished unit "Lair Dwellers" dispatched to help 48335 | -2/Research | Distinguished unit "Knights of the Pentagonal Table" dispatched to help 48420 | -2/Research | Research machine network offline 48594 | -2/Research | Spotted Striker 48614 | -2/Research | Allies destroyed Striker 48641 | -2/Research | Found Prototype Processor 48641 | -2/Research | Identified Exp. Melee Analysis Suite 48670 | -2/Research | Borebot progress halted 48854 | -2/Research | Found Unknown Protection 48854 | -2/Research | Identified Hvy. Insulated Plating 48860 | -2/Research | P-80 Master assimilated allied EF-KSR(l) 48861 | -2/Research | Spotted Executioner 48861 | -2/Research | Spotted Executioner 48892 | -2/Research | Found Exp. Core Analyzer 48930 | -2/Research | Found Fusion Bomb Launcher 49089 | -2/Research | Borebot progress halted 49162 | -2/Research | Spotted Executioner 49162 | -2/Research | Spotted Executioner 49211 | -2/Research | Lost 7 allies 49290 | -2/Research | Discovered new exit (range 91) 49329 | -2/Research | Borebot progress halted 49395 | -2/Research | Met up with Warlord 49396 | -2/Research | Warlord invited to help at Command 49396 | -2/Research | Given Cave Seal Controls access code 49440 | -2/Research | Spotted Striker 49493 | -2/Research | Lost 4 allies 49753 | -2/Research | Discovered new exit (range 7) 50046 | -2/Research | Found Prototype Launcher 50046 | -2/Research | Identified Ragnarok Missile Launcher 50085 | -2/Research | Discovered new exit (range 8) 50338 | -2/Research | Found Prototype Protection 50338 | -2/Research | Identified Centrium Heavy Armor Plating 50356 | -2/Research | Found Centrium Heavy Armor Plating 50360 | -2/Research | Found Centrium Heavy Armor Plating 50364 | -2/Research | Spotted B-90 Cyclops 50405 | -2/Research | Discovered new exit (range 5) 50572 | -2/Research | Spotted Executioner 50582 | -2/Research | Destroyed Executioner 50684 | -2/Research | Spotted Striker 50736 | -2/Research | Lost 3 allies 50745 | -2/Research | Discovered new exit (range 16) 50770 | -2/Research | Entered Access 50770 | -1/Access | Evolved 2 slots: Utility x2 50889 | -1/Access | Garrison activated, responded to threat 50939 | -1/Access | Lost 6 allies 50973 | -1/Access | Unchained authorized (QV-33N) 50992 | -1/Access | Lost 5 allies 51020 | -1/Access | First assault squad dispatched 51169 | -1/Access | Incoming assault squad redirected 51218 | -1/Access | Destroyed 7 combat bots 51540 | -1/Access | Incoming assault squad redirected 51966 | -1/Access | Garrison activated, responded to threat 52042 | -1/Access | Incoming assault squad redirected 52116 | -1/Access | Build established: Hacker-Tank 52288 | -1/Access | Lost 3 parts (1p1u1w) 52372 | -1/Access | Lost 3 parts (2u1w) 52389 | -1/Access | Destroyed 15 combat bots 52538 | -1/Access | Found Exp. Targeting Computer 52541 | -1/Access | Found Exp. Targeting Computer 52800 | -1/Access | Destroyed 7 combat bots 52814 | -1/Access | High security lockdown imminent 52877 | -1/Access | System corruption reached 10% 52894 | -1/Access | High security lockdown engaged 52940 | -1/Access | Lost 12 parts (2p2n4u4w) 52960 | -1/Access | System corruption reached 30% 52960 | -1/Access | Released all parts (9) 52990 | -1/Access | Lost 4 parts (1n3u) 53034 | -1/Access | Core integrity fell below 50% 53068 | -1/Access | Core integrity fell below 20% 53084 | -1/Access | Destroyed by Antisys Drone with Antisys Shotgun Last Messages --------------- EX Drone disintegrates. 53048_ Door malfunctions. Antisys Drone disintegrates. 53050_ Penetrated by Slug. 53058_ AQ/1P,91 53067_ Slug penetrates Wall. 53068_ U-05 Engineer lays Concrete. 53068_ Slug penetrates Wall. 53070_ U-05 Engineer lays Concrete. 53070_ U-05 Engineer builds a Wall. 53070_ Penetrated by Slug. 53072_ U-05 Engineer builds a Wall. 53073_ Penetrated by Slug. 53073_ Slug penetrates Wall. 53083_ Critical hit (Burn: +37). [Achievement: Rambo] Map ----- +----------------------------------------------------+ | ??????????????????????????????????????????? ?""""" | | ??????????????????????????????????????????? """"" | | ???????????????????????????????????????????? | | ????????????????????????????????????????????? | | ?????????????????????????????????????????????? | | ??????????????????????????????????????????????? | | ???????????????????????????????????????????????? | | ????????????????????????????????????????????????? | | ????????????????????s????????????????????#######+# | | ?????????????????????????????????????????# | | ??????????????????????#######????????????# | | ?? ??????????????????# #????????????# "" | | # ????????????????# #????????????#] """ | | # ?????????????# #????????????# T" | | # ???????????# #????????????# """ | | # ????????????# #????????????# "" | | # #????????????# #????????????# | | ## #????????????# #????????????# | | ## #????????????# #?????????#######+#### | | ## #????????????# #?????????# | | #????????????# #?????????# | | #???#+#??????# #?????????# | | #???# #??????? ??????????# | | #???# #???????##+##??????????# | | ##### #########! #################+##### | | h m n n @ g b gb | | #?### ####### !#################+##### | | #???# #?????#####?????????????# | | #???# #???????????????????????# | | ##+## #####+## #???????????????????????# | | # ## # #???????????????????????# | | # + # #???????????????????????# | | #### # #???????????????????????# = | | #??# # #???????????????????????# | | #??####### #???????????????????????# ! | | #???????? ???????????????????????######### | | #####???????? ??????????????????????????????? | | ????????????? ????????ws?s??????????????????? | | ???????????? ?????????sss?????????????????? | | ???????????? p ????????s????????????????????? | | ???????????? C####????????????????????????????? | | ????????????? #???????????????????????????????? | | ????????????? ????????????????????????????????? | | ?????????????????????????????????????????????????? | | ?????????????????????????????????????????????????? | | ?????????????????????????????????????????????????? | | ?????????????????????????????????????????????????? | | ?????????????????????????????????????????????????? | | ?????????????????????????????????????????????????? | | ?????????????????????????????????????????????????? | +----------------------------------------------------+ Best States ------------- Heat Dissipation 83 Coolant Potential 120 Energy Generation 45 Energy Capacity 1100 Matter Stores 550 Matter Capacity 550 Sight Range 22 Robot Scan Range 20 Terrain Scan Range 16 Terrain Scan Density 210 Jamming Range 14 Additional Mass Support 25 EM Shielding 3 Corruption Containment 12 Corruption Block 18 Armor Coverage 2400 Resistance: TH 50 Point Defense Rating 480 Phase Shifting 10 Evasion (%) 50 Targeting Accuracy 17 Target Analysis 9 Core Analysis 11 Recoil Reduction 6 Kinecelleration 40 Offensive Hacking 36 Defensive Hacking 21 Item Schematics ----------------- Hvy. Missile Launcher | -7/Factory | Hacked Combat Drone Bay | -6/Data Miner | Free Lgt. Regenerative Plating | -6/Data Miner | Free Enh. Flexi-carbon Leg | -6/Data Miner | Free Imp. Energy Well | -6/Data Miner | Free Mni. Smartbomb Launcher | -6/Data Miner | Free Myomer Leg | -6/Data Miner | Free Adv. Particle Charger | -6/Data Miner | Free Micro-nuke Launcher | -6/Data Miner | Free Thunder Leg | -6/Data Miner | Free Hvy. Gauss Cannon | -6/Data Miner | Free Adv. Reaction Control System | -6/Data Miner | Free Linear Accelerator | -6/Data Miner | Free Robot Schematics ------------------ Y-54 Guardian | -6/Data Miner | Free A-15 Conveyor | -6/Data Miner | Free G-50 Soldier | -6/Data Miner | Free W-44 Eye | -6/Data Miner | Free Fabricated ------------ Nothing Repaired ---------- Imp. Light Cannon | 79% | -10/Materials Lgt. Treads | 45% | -10/Materials Lgt. Treads | 53% | -10/Materials Imp. Treads | 38% | -8/Materials Imp. Treads | 41% | -8/Materials Imp. Treads | 58% | -8/Materials Exp. Sensor Array | 62% | -8/Materials Imp. Treads | 58% | -8/Materials Seismic Detector | 35% | -8/Materials Assault Cannon | 38% | -8/Materials Imp. Treads | 68% | -8/Materials Imp. Treads | 69% | -8/Materials Assault Cannon | 68% | -8/Materials Imp. Treads | 72% | -8/Materials Adv. Treads | 27% | -7/Factory Assault Cannon | 8% | -7/Factory Arm. Huge Wheel | 88% | -7/Factory | Broken Mni. Grenade Launcher | 16% | -7/Factory Imp. Heavy Armor Plating | 73% | -7/Factory Arm. Heavy Treads | 52% | -6/Factory Imp. Kinecellerator | 34% | -5/Factory Arm. Heavy Treads | 50% | -4/Factory Adv. Force Field | 30% | -4/Factory Hyp. Gauss Rifle | 50% | -4/Factory Hyp. Gauss Rifle | 50% | -4/Factory Arm. Medium Treads | 50% | -4/Factory Arm. Medium Treads | 50% | -4/Factory Studied --------- Wheel | -9/Materials | Hacked Rocket Launcher | -9/Materials | Hacked Assault Cannon | -8/Materials | Hacked Mni. Grenade Launcher | -8/Materials | Hacked Railgun | -3/Research | Hacked Hvy. Shock Bomb Launcher | -3/Research | Hacked Rnf. Fission Core | -3/Research | Hacked Coil Gun | -3/Research | Hacked Alien Tech Used ----------------- None Achievements -------------- Great Explorer Rambo Special Forces Challenges ------------ None Game ------ Seed MachineBlanketMace Manual? 0 Play Time 06:35:00 Cumulative 382.7 hours Start 2026.02.03 @ 19:24:36 End 2026.02.04 @ 02:02:54 Sessions 1 Manual Loads 0 Difficulty Rogue Special Mode None Game No. 303 Rogue 303 Adventurer 0 Explorer 0 Win Type - Total 2 Types 2/0/0/0/0/0/0/0/0/0 Lore% 63 Gallery% 72 Achievement% 53 Wizard Run 0 Options --------- Layout 1 ASCII 0 Keyboard 0 Movement Mouse Keybinds 0 Fullscreen 1 Font 32/SmallcapsGlow Map View 50x35 Zoom Use 0% Tactical HUD 1 Map Filters NONE Filters NONE Steam 1 RUN: 1a46448c-2584-4ad8-8864-8723aaf2b890